{"text_format":"1","workbook":"xlsx","n_sheets":6,"sheets":["LookUp","Start","Output","State","County","Place"],"not_rendered":{"charts":0,"images":0,"macros":1,"external_links":0,"defined_names":16,"comments":0,"pivot_tables":0},"unopened":[],"bounds":{"document_bytes":16777216,"sheet_cells":100000,"rows_first":2000,"rows_last":500,"rows_between":2000,"halvings":0,"cell_chars":16384,"cell_head_chars":4096},"cells_cut":0,"cells_raw":0,"read":"whole","date_system":"1900"}

{"sheet":"LookUp","index":0,"n_rows":5,"n_cols":1,"rows_kept":5,"cut":false,"hidden":true,"merged":[]}
[">100,000"]
["50,001-100,000"]
["10,001-50,000"]
["3,301-10,000"]
["< 3,300"]

{"sheet":"Start","index":1,"n_rows":6,"n_cols":2,"rows_kept":6,"cut":false,"hidden":false,"merged":[[3,0,3,2],[4,0,4,2],[5,0,5,2]]}
[null,"SC Water Utility Viability Tool\nv2.1 (July 2025)"]
[]
[]
["This self-assessment tool uses macros to create an interactive experience. \nWhen you click Start Tool, a grey pop-up box should appear. \nYou may need to click Enable Content at the top of this window.\nFor additional information, please see the Troubleshooting Tips available at"]
["ria.sc.gov/utility-viability"]
["If you need assistance, please contact the South Carolina Rural Infrastructure Authority at info@ria.sc.gov or (803) 737-0390."]

{"sheet":"Output","index":2,"n_rows":148,"n_cols":20,"rows_kept":148,"cut":false,"hidden":true,"merged":[[87,0,94,0],[87,1,94,1],[87,2,94,2],[87,3,94,3],[87,4,94,4],[82,0,84,0],[82,1,84,1],[82,2,84,2],[82,3,84,3],[82,4,84,4],[85,0,86,0],[85,1,86,1],[85,2,86,2],[85,3,86,3],[85,4,86,4],[72,0,76,0],[72,1,76,1],[72,2,76,2],[72,3,76,3],[72,4,76,4],[77,0,81,0],[77,1,81,1],[77,2,81,2],[77,3,81,3],[77,4,81,4],[64,5,64,7],[67,0,70,0],[67,1,70,1],[67,2,70,2],[67,3,70,3],[67,4,70,4],[62,5,62,7],[44,5,44,7],[49,2,49,4],[51,5,51,7],[52,5,52,7],[54,5,54,7],[55,5,55,7],[56,5,56,7],[58,5,58,7],[59,5,59,7],[60,5,60,7],[38,0,40,0],[38,1,40,1],[38,2,40,2],[38,3,40,3],[38,4,40,4],[43,2,43,4],[27,6,28,6],[27,7,28,7],[29,5,30,5],[29,6,30,6],[29,7,30,7],[31,2,31,4],[41,5,41,7],[42,5,42,7],[19,5,19,7],[20,5,20,7],[21,2,30,2],[21,3,30,3],[21,4,30,4],[21,5,21,7],[23,5,26,5],[23,6,26,6],[23,7,26,7],[27,5,28,5],[13,5,13,7],[14,5,14,7],[15,2,18,2],[15,3,18,3],[15,4,18,4],[15,6,18,6],[15,7,18,7],[9,5,9,7],[10,0,12,0],[10,1,12,1],[10,2,12,2],[10,3,12,3],[10,4,12,4],[0,6,0,7],[1,1,1,7],[4,2,4,4],[4,5,4,7],[5,2,5,4],[6,0,8,0],[6,1,8,1],[6,2,8,2],[6,3,8,3],[6,4,8,4]]}
["SC Water Utility Viability Tool Results (v2.1)",null,null,null,null,"Date Completed: ",{"$f":"TODAY()","v":45894},null,null,null,null,null,0.8,null,"POINTS EARNED",{"$f":"C3","v":2}]
["Utility Name",null,null,null,null,null,null,null,null,null,null,null,0.5,null,"TOTAL POSSIBLE POINTS",{"$f":"E3","v":95}]
["Viability Score",null,{"$f":"SUM(C7:C31,C33:C41,C45:C49,C51:C95)","v":2},"/",{"$f":"SUM(E7:E31,E33:E41,E45:E49,E51:E95)","v":95},{"$f":"_xlfn.CONCAT(\" = \",TEXT(C3/E3,\"##0%\"))","v":" = 2%"},null,null,null,null,{"$f":"C3","v":2},{"$f":"E3","v":95},{"$f":"M2","v":0.5},null,"VIABILITY SCORE",{"$f":"P1/P2","v":2.1052631578947368E-2},null,null,{"$f":"E6","v":0}]
[]
["Note: Items that did not receive full potential points are in bold red font, with the points earned shaded in light orange.","Your Response","Points Earned",null,null,"Scoring Method",null,null,null,null,"full pts?",null,"Component Name"]
["Step 1. Infrastructure",null,{"$f":"_xlfn.CONCAT(SUM(C7:C31),\" / \",SUM(E7:E31),\" = \",TEXT((SUM(C7:C31)/SUM(E7:E31)),\"##0%\"))","v":"2 / 23 = 9%"},null,null,null,null,null,null,null,{"$f":"SUM(C7:C31)","v":2},{"$f":"SUM(E7:E31)","v":23}]
["Primary system service population ",{"$f":"IF(N7=\"\",\"\",N7)","v":""},{"$f":"IF(B7=\"\",0,IF(B7=\"Less than 3,300\",0,IF(B7=\"3,300-10,000\",H8,H7)))","v":0},"/",{"$f":"H7","v":4},"> 10,000","=",4,null,null,{"$f":"IF(C7=E7,\"Yes\",\"No\")","v":"No"},null,"lb_systemsize",{"$f":"IFERROR(INDEX(M115:M119,MATCH(1,$N$115:$N$119,0)),\"\")","v":""},null,null,null,null,"UnemploymentState",4.0999999999999996]
[null,null,null,null,null," 3,300 - 10,000","=",2,null,null,null,null,null,null,null,null,null,null,"PopulationChange_Label","Population Change   "]
[null,null,null,null,null,"< 3,300","=","0 points",null,null,null,null,null,null,null,null,null,null,"MedianHouseIncome_Label","Median Household Income"]
["Services provided",{"$f":"IF(N10=\"\",\"\",IF(R10,\"Water & Sewer\",IF(N10,\"Water Only\",IF(P10,\"Sewer Only\",\"\"))))","v":""},null,null,null,"not scored",null,null,null,null,null,null,"ob_waterservice",{"$f":"VLOOKUP($M10,$S:$T,2,0)","v":false},"ob_sewerservice",{"$f":"VLOOKUP($O10,$S:$T,2,0)","v":false},"ob_bothservices",{"$f":"VLOOKUP($Q10,$S:$T,2,0)","v":false},"PovertyRate_Label","Poverty Rate"]
["Date of last rate increase",{"$f":"IF(N11,\"Less than 2 years ago\",IF(P11,\"Between 2 and 5 years\",IF(R11,\"More than 5 years ago\",\"N/A\")))","v":"N/A"},{"$f":"IF(N11,H11,IF(P11,H12,0))","v":0},"/",{"$f":"H11","v":5},"< 2 years ago","=",5,null,null,{"$f":"IF(C11=E11,\"Yes\",\"No\")","v":"No"},null,"ob_rate_increase_1",{"$f":"VLOOKUP($M11,$S:$T,2,0)","v":false},"ob_rate_increase_2",{"$f":"VLOOKUP($O11,$S:$T,2,0)","v":false},"ob_rate_increase_3",{"$f":"VLOOKUP($Q11,$S:$T,2,0)","v":false},"UnemploymentRate_Label","Unemployment Rate"]
[null,null,null,null,null,"2-5 years ago","=",2,null,null,null,null,null,null,null,null,null,null,"PopulationChangeUser"]
[null,null,null,null,null,"> 5 years ago","=",0,null,null,null,null,null,null,null,null,null,null,"MHIuser"]
["Monthly residential water service bill",{"$f":"N14","v":""},null,null,null,"See calculated measure in financial section",null,null,null,null,null,null,"tb_WaterBill",{"$f":"IF(VLOOKUP($M14,$S:$T,2,0)=\"\",\"\",VLOOKUP($M14,$S:$T,2,0))","v":""},"tb_CombinedBill",null,null,null,"PovertyRateUser"]
["Monthly residential sewer service bill",{"$f":"N15","v":""},null,null,null,"See calculated measure in financial section",null,null,null,null,null,null,"tb_SewerBill","",null,"is N/A chkd?","meets crit?",null,"UnemploymentUser"]
["Estimated age of water distribution assets",{"$f":"IFERROR(IF(P16,\"N/A\",IF(N16=\"\",\"\",VLOOKUP(M16,S:T,2,0))),\"-\")","v":""},{"$f":"IF(AND(Q16,Q17,Q18,Q19),2,0)","v":2},"/",{"$f":"H16","v":2},"≤ 50 years","=",2,null,null,{"$f":"IF(Q16,\"Yes\",\"No\")","v":"Yes"},null,"tb_age_distribution","","cb_distribution",{"$f":"IF(VLOOKUP($O16,$S:$T,2,0)=\"\",\"\",VLOOKUP($O16,$S:$T,2,0))","v":false},{"$f":"IF(N16=\"\",TRUE,IF(N16>50,FALSE,TRUE))","v":true},null,"combo_County"]
["Estimated age of water pumping/treatment assets",{"$f":"IFERROR(IF(P17,\"N/A\",IF(N17=\"\",\"\",VLOOKUP(M17,S:T,2,0))),\"-\")","v":""},null,null,null,"≤ 30 years",null,null,null,null,{"$f":"IF(Q17,\"Yes\",\"No\")","v":"Yes"},null,"tb_age_pumpingtreatment","","cb_water_pumping",{"$f":"IF(VLOOKUP($O17,$S:$T,2,0)=\"\",\"\",VLOOKUP($O17,$S:$T,2,0))","v":false},true,null,"combo_CityTown"]
["Estimated age of wastewater collection assets",{"$f":"IFERROR(IF(P18,\"N/A\",IF(N18=\"\",\"\",VLOOKUP(M18,S:T,2,0))),\"-\")","v":""},null,null,null,"≤ 50 years",null,null,null,null,"Yes",null,"tb_age_collection","","cb_collection",{"$f":"IF(VLOOKUP($O18,$S:$T,2,0)=\"\",\"\",VLOOKUP($O18,$S:$T,2,0))","v":false},true,null,"PopChange_Eq","which is less than the State Benchmark of"]
["Estimated age of wastewater pumping/treatment assets",{"$f":"IFERROR(IF(P19,\"N/A\",IF(N19=\"\",\"\",VLOOKUP(M19,S:T,2,0))),\"-\")","v":""},null,null,null,"≤ 30 years",null,null,null,null,{"$f":"IF(Q19,\"Yes\",\"No\")","v":"Yes"},null,"tb_age_ww_pumping","","cb_ww_pumping",{"$f":"IF(VLOOKUP($O19,$S:$T,2,0)=\"\",\"\",VLOOKUP($O19,$S:$T,2,0))","v":false},{"$f":"IF(N19=\"\",TRUE,IF(N19>50,FALSE,TRUE))","v":true},null,"PopulationChangeState",1.36]
["Any sanitary survey inspections in the past 5 years? ",{"$f":"IF(N20=\"\",\"\",IF(N20,\"Yes\",\"No\"))","v":"No"},null,null,null,"not scored",null,null,null,null,null,null,"ob_W_inspection_yes",false,null,null,null,null,"PovertyRateState",14.2]
["Any wastewater compliance inspections in the past 5 years?",{"$f":"IF(N21=\"\",\"\",IF(N21,\"Yes\",\"No\"))","v":"No"},null,null,null,"not scored",null,null,null,null,null,null,"ob_WW_inspection_yes",false,null,null,null,null,"MHIstate",66818]
["Water System Compliance",{"$f":"IF(N26=\"\",\"\",VLOOKUP(N26,AA:AB,2,0))","v":""},{"$f":"IF(B23=\"\",0,IF(OR(B23=\"yes\",B28=\"yes\"),0,IF(OR(Q25>0,Q26>1),4,IF(OR(Q28>0,Q26=1),6,IF(Q31=0,12,\"check\")))))","v":0},"/",12,"Water & sewer scored together:",null,null,null,null,{"$f":"IF(C22=E22,\"Yes\",\"No\")","v":"No"},null,"ob_W_activeCAO_no",false,null,null,null,null,"MHI_eq","which is less than the State Benchmark of"]
["Active consent or administrative order (CO)?",{"$f":"IF(AND(N22=FALSE,N23=FALSE),\"\",IF(N23,\"Yes\",\"No\"))","v":""},null,null,null,"Active CO","=","0 points",null,null,{"$f":"IF(B23=\"\",\"\",IF(B23=\"Yes\",\"No\",\"Yes\"))","v":""},null,"ob_W_activeCAO_yes",false,null,null,null,null,"PR_Eq","which is less than the State Benchmark of"]
["Inactive/closed consent/admin orders in last 5 years",{"$f":"IF(VLOOKUP($M24,$S:$T,2,0)=\"\",\"\",VLOOKUP($M24,$S:$T,2,0))","v":""},null,null,null,"Inactive/closed CO >0 \nand/or Unsats > 1 \n(no active CO)","=",4,null,null,{"$f":"IF(B24=\"\",\"\",IF(B24>0,\"No\",\"Yes\"))","v":""},null,"tb_w_CAO",null,null,null,null,null,"U_eq","which is less than the State Benchmark of"]
["Notices of Violation in last 5 years",{"$f":"IF(VLOOKUP($M25,$S:$T,2,0)=\"\",\"\",VLOOKUP($M25,$S:$T,2,0))","v":""},null,null,null,null,null,null,null,null,{"$f":"IF(B25=\"\",\"\",IF(B25>0,\"No\",\"Yes\"))","v":""},null,"tb_W_NOV",null,null,"inactive/close CO",{"$f":"SUM(B24,B29)","v":0},null,"ob_CIP_no",false]
["Unsatisfactory sanitary survey inspections in last 5 years",{"$f":"IF(VLOOKUP($M26,$S:$T,2,0)=\"\",\"\",VLOOKUP($M26,$S:$T,2,0))","v":""},null,null,null,null,null,null,null,null,"",null,"tb_w_unsat_inspections",null,null,"Unsats",{"$f":"SUM(B26,B31)","v":0},null,"ob_CIP_yes",false]
["Sewer System Compliance",null,null,null,null,null,null,null,null,null,"",null,"ob_WW_activeCAO_no",{"$f":"VLOOKUP($M27,$S:$T,2,0)","v":false},null,null,null,null,"ob_AMP_no",false]
["Active consent or administrative order?",{"$f":"IF(AND(N27=FALSE,N28=FALSE),\"\",IF(N28,\"Yes\",\"No\"))","v":""},null,null,null,"NOV > 0 and/or Unsats = 1 \n(and no active or closed CO)","=",6,null,null,{"$f":"IF(B28=\"\",\"\",IF(B28=\"Yes\",\"No\",\"Yes\"))","v":""},null,"ob_WW_activeCAO_yes",{"$f":"VLOOKUP($M28,$S:$T,2,0)","v":false},null,"NOV",{"$f":"SUM(B25,B30)","v":0},null,"ob_AMP_yes",false]
["Inactive/closed consent/admin orders in last 5 years",{"$f":"IF(VLOOKUP($M29,$S:$T,2,0)=\"\",\"\",VLOOKUP($M29,$S:$T,2,0))","v":""},null,null,null,null,null,null,null,null,"",null,"tb_ww_CAO",null,null,"Unsats",{"$f":"Q26","v":0},null,"ob_GIS_no",false]
["Notices of Violation in last 5 years",{"$f":"IF(VLOOKUP($M30,$S:$T,2,0)=\"\",\"\",VLOOKUP($M30,$S:$T,2,0))","v":""},null,null,null,"0 Unsats, NOVs, COs","=",12,null,null,"",null,"tb_ww_NOV",null,null,null,null,null,"ob_GIS_yes",false]
["Unsatisfactory compliance inspections in last 5 years",{"$f":"IF(VLOOKUP($M31,$S:$T,2,0)=\"\",\"\",VLOOKUP($M31,$S:$T,2,0))","v":""},null,null,null,null,null,null,null,null,"",null,"tb_ww_unsat_inspections",null,null,"sum",{"$f":"SUM(Q25:Q28)","v":0},null,"tb_councilvacant"]
["Step 2. Managerial/Operational",null,{"$f":"_xlfn.CONCAT(SUM(C33:C41),\" / \",SUM(E33:E41),\" = \",TEXT((SUM(C33:C41)/SUM(E33:E41)),\"##0%\"))","v":"0 / 11 = 0%"},null,null,null,null,null,null,null,{"$f":"SUM(C33:C41)","v":0},{"$f":"SUM(E33:E41)","v":11},null,null,null,null,null,null,"ob_training_no",false]
["Current capital improvement plan?",{"$f":"IF(AND(N33=FALSE,P33=FALSE),\"\",IF(N33,\"Yes\",IF(P33,\"No\",IF(NOT(OR(N33,P33)),\"-\",\"Check\"))))","v":""},{"$f":"IF(B33=\"Yes\",H33,0)","v":0},"/",{"$f":"H33","v":3},"Yes","=",3,null,null,{"$f":"IF(C33=E33,\"Yes\",\"No\")","v":"No"},null,"ob_CIP_yes",{"$f":"VLOOKUP(M33,S:T,2,0)","v":false},"ob_CIP_no",{"$f":"VLOOKUP(O33,S:T,2,0)","v":false},null,null,"ob_training_some",false]
["Asset management program?",{"$f":"IF(AND(N34=FALSE,P34=FALSE),\"\",IF(N34,\"Yes\",IF(P34,\"No\",IF(NOT(OR(N34,P34)),\"-\",\"Check\"))))","v":""},{"$f":"IF(B34=\"Yes\",1,0)","v":0},"/",1,"Yes","=","1 point",null,null,{"$f":"IF(C34=E34,\"Yes\",\"No\")","v":"No"},null,"ob_AMP_yes",{"$f":"VLOOKUP(M34,S:T,2,0)","v":false},"ob_AMP_no",{"$f":"VLOOKUP(O34,S:T,2,0)","v":false},null,null,"ob_training_all",false]
["GIS mapping?","",{"$f":"IF(B35=\"Yes\",H35,0)","v":0},"/",{"$f":"H35","v":2},"Yes","=",2,null,null,"No",null,"ob_GIS_yes",{"$f":"VLOOKUP(M35,S:T,2,0)","v":false},"ob_GIS_no",{"$f":"VLOOKUP(O35,S:T,2,0)","v":false},null,null,"tb_keystaffvacant"]
["Emergency Preparedness Plan?",{"$f":"IF(AND(N36=FALSE,P36=FALSE),\"\",IF(N36,\"Yes\",IF(P36,\"No\",IF(NOT(OR(N36,P36)),\"-\",\"Check\"))))","v":""},{"$f":"IF(B36=\"Yes\",1,0)","v":0},"/",1,"Yes","=","1 point",null,null,"No",null,"ob_emergency_yes",{"$f":"VLOOKUP(M36,S:T,2,0)","v":false},null,null,null,null,"tb_mgmt"]
["Long-term staff vacancies",{"$f":"N37","v":""},{"$f":"IF(B37=F37,1,0)","v":0},"/",1,0,"=","1 point",null,null,"No",null,"tb_keystaffvacant",{"$f":"IF(VLOOKUP($M37,$S:$T,2,0)=\"\",\"\",VLOOKUP($M37,$S:$T,2,0))","v":""},null,null,null,null,"tb_CombinedBill"]
["Long-term board vacancies",{"$f":"N38","v":""},{"$f":"IF(B38=F38,1,0)","v":0},"/",1,0,"=","1 point",null,null,"No",null,"tb_councilvacant",{"$f":"IF(VLOOKUP($M38,$S:$T,2,0)=\"\",\"\",VLOOKUP($M38,$S:$T,2,0))","v":""},null,null,null,null,"tb_unrestrictedcash"]
["Governing body members trained related to operation and management of a utility in the last 2 years",{"$f":"IF(AND(N39=FALSE,P39=FALSE,R39=FALSE),\"N/A\",IF(N39,\"None\",IF(P39,\"Some\",IF(R39,\"All\",IF(NOT(OR(N39,P39,R39)),\"-\",\"Check\")))))","v":"N/A"},{"$f":"IF(N39,0,IF(P39,1,IF(R39,2,0)))","v":0},"/",{"$f":"H39","v":2},"All","=",2,null,null,"No",null,"ob_training_no",{"$f":"VLOOKUP($M39,$S:$T,2,0)","v":false},"ob_training_some",{"$f":"VLOOKUP($O39,$S:$T,2,0)","v":false},"ob_training_all",{"$f":"VLOOKUP($Q39,$S:$T,2,0)","v":false},"tb_TOLTD"]
[null,null,null,null,null,"Some ","=","1 point",null,null,null,null,null,null,null,null,null,null,"tb_NPA"]
[null,null,null,null,null,"None","=",0,null,null,null,null,null,null,null,null,null,null,"tb_revenue"]
["Drinking Water Operator",{"$f":"IFERROR(VLOOKUP(\"X\",$N$122:$O$125,2,0),\"\")","v":""},null,null,null,"not scored",null,null,null,null,null,null,null,null,null,null,null,null,"tb_expenses"]
["Wastewater Operator",{"$f":"IFERROR(VLOOKUP(\"X\",$N$126:$O$129,2,0),\"\")","v":""},null,null,null,"not scored",null,null,null,null,null,null,null,null,null,null,null,null,"tb_change_in_net_assets"]
["Step 3. Socio-Economics",{"$f":"IF(N44=\"\",\"\",VLOOKUP(N44,AA:AB,2,0))","v":""},{"$f":"_xlfn.CONCAT(SUM(C45:C49),\" / \",SUM(E45:E49),\" = \",TEXT((SUM(C45:C49)/SUM(E45:E49)),\"##0%\"))","v":"0 / 12 = 0%"},null,null,null,null,null,null,null,{"$f":"SUM(C45:C49)","v":0},{"$f":"SUM(E45:E49)","v":12},null,null,null,null,null,null,"tb_ADE"]
["Primary Utility Service Area",{"$f":"IF(M45=\"\",\"\",IF(N45<>0,N45,IF(P45<>0,P45,\"N/A\")))","v":"N/A"},null,null,null,"not scored",null,null,null,null,null,null,"combo_County",{"$f":"VLOOKUP($M45,$S:$T,2,0)","v":0},"combo_CityTown",{"$f":"VLOOKUP($O45,$S:$T,2,0)","v":0},null,null,"tb_debtservicecoverage"]
["Population Change",{"$f":"IFERROR(N46/100,\"\")","v":""},{"$f":"IF(N46=\"\",0,IF(N46>=P46,H46,0))","v":0},"/",{"$f":"H46","v":3},{"$f":"_xlfn.CONCAT(\"≥ SC-wide rate (\",ROUND(P46,2),\"%)\")","v":"≥ SC-wide rate (1.36%)"},"=",3,null,null,{"$f":"IF(C46=E46,\"Yes\",\"No\")","v":"No"},null,"PopulationChangeUser",{"$f":"IF(VLOOKUP($M46,$S:$T,2,0)=\"\",\"\",VLOOKUP($M46,$S:$T,2,0))","v":""},"PopulationChangeState",{"$f":"IF(O46=\"\",\"\",VLOOKUP(O46,S:T,2,0))","v":1.36},null,null,"tb_days_cash_on_hand"]
["Median Household Income",{"$f":"IFERROR(N47,\"\")","v":""},{"$f":"IF(N47=\"\",0,IF(N47>=P47,H47,0))","v":0},"/",{"$f":"H47","v":3},{"$f":"_xlfn.CONCAT(\"≥ SC-wide rate ($\",TEXT(P47,\"0,000\"),\")\")","v":"≥ SC-wide rate ($66,818)"},"=",3,null,null,"No",null,"MHIuser",{"$f":"IF(VLOOKUP($M47,$S:$T,2,0)=\"\",\"\",VLOOKUP($M47,$S:$T,2,0))","v":""},"MHIstate",{"$f":"IF(O47=\"\",\"\",VLOOKUP(O47,S:T,2,0))","v":66818},null,null,"tb_debt_to_net_plant_assets"]
["Poverty Rate",{"$f":"IFERROR(N48/100,\"\")","v":""},{"$f":"IF(N48<=P48,H48,0)","v":0},"/",{"$f":"H48","v":3},{"$f":"_xlfn.CONCAT(\"≤ SC-wide rate (\",ROUND(P48,2),\"%)\")","v":"≤ SC-wide rate (14.2%)"},"=",3,null,null,"No",null,"PovertyRateUser",{"$f":"IF(VLOOKUP($M48,$S:$T,2,0)=\"\",\"\",VLOOKUP($M48,$S:$T,2,0))","v":""},"PovertyRateState",{"$f":"IF(O48=\"\",\"\",VLOOKUP(O48,S:T,2,0))","v":14.2},null,null,"tb_asset_conditions"]
["Unemployment Rate",{"$f":"IFERROR(N49/100,\"\")","v":""},{"$f":"IF(N49<=P49,H49,0)","v":0},"/",{"$f":"H49","v":3},{"$f":"_xlfn.CONCAT(\"≤ SC-wide rate (\",ROUND(P49,3),\"%)\")","v":"≤ SC-wide rate (4.1%)"},"=",3,null,null,{"$f":"IF(C49=E49,\"Yes\",\"No\")","v":"No"},null,"UnemploymentUser",{"$f":"IF(VLOOKUP($M49,$S:$T,2,0)=\"\",\"\",VLOOKUP($M49,$S:$T,2,0))","v":""},"UnemploymentState",{"$f":"IF(O49=\"\",\"\",VLOOKUP(O49,S:T,2,0))","v":4.0999999999999996},null,null,"tb_StateBill_sewer",51.08]
["Step 4. Financial",null,{"$f":"_xlfn.CONCAT(SUM(C51:C95),\" / \",SUM(E51:E95),\" = \",TEXT((SUM(C51:C95)/SUM(E51:E95)),\"##0%\"))","v":"0 / 49 = 0%"},null,null,null,null,null,null,null,{"$f":"SUM(C51:C95)","v":0},{"$f":"SUM(E51:E95)","v":49},null,null,null,null,null,null,"tb_BillpercentMHI_water"]
["Using audited financials? ",{"$f":"IF(AND(N51=FALSE,P51=FALSE),\"\",IF(N51,\"Yes\",IF(P51,\"No\",IF(NOT(OR(N51,P51)),\"-\",\"Check\"))))","v":""},{"$f":"IF(B51=\"Yes\",H51,0)","v":0},"/",{"$f":"H51","v":4},"Yes","=",4,null,null,"No",null,"ob_audited_yes",{"$f":"VLOOKUP(M51,S:T,2,0)","v":false},"ob_audited_no",{"$f":"VLOOKUP(O51,S:T,2,0)","v":false},null,null,"tb_BillpercentMHI_sewer"]
["Other Source Used",{"$f":"IF(N52=\"\",\"\",VLOOKUP(M52,AA:AB,2,0))","v":""},null,null,null,"not scored",null,null,null,null,null,null,"tb_financial_source",null,null,null,null,null,"tb_BillpercentMHI_combined"]
["Fiscal Year Source",{"$f":"IF(N53=\"\",\"\",VLOOKUP(M53,AA:AB,2,0))","v":""},null,null,null,"not scored",null,null,null,null,null,null,"tb_fiscal_year",null,null,null,null,null,"tb_StateBill_Combined",92.47]
["Step 4a. Balance Sheet",null,null,null,null,null,null,null,null,null,null,null,null,null,null,null,null,null,"tb_StateBill_water",41.39]
["Unrestricted Cash",{"$f":"IF(P55,\"Unable to Determine\",IF(VLOOKUP(M55,S:T,2,0)=\"\",\"-\",VLOOKUP(M55,S:T,2,0)))","v":"-"},null,null,null,"see calculated values below",null,null,null,null,null,null,"tb_unrestrictedcash",{"$f":"VLOOKUP(M55,S:T,2,0)","v":0},"cb_utd_unrestrictedcash",{"$f":"VLOOKUP($O55,$S:$T,2,0)","v":false},null,null,"tb_annual_Interest_expense"]
["Total Outstanding Long Term Debt",{"$f":"IF(P56,\"Unable to Determine\",IF(VLOOKUP(M56,S:T,2,0)=\"\",\"-\",VLOOKUP(M56,S:T,2,0)))","v":"-"},null,null,null,"see calculated values below",null,null,null,null,null,null,"tb_TOLTD",{"$f":"VLOOKUP(M56,S:T,2,0)","v":0},"cb_utd_TOLTD",{"$f":"VLOOKUP($O56,$S:$T,2,0)","v":false},null,null,"tb_ADSP"]
["Fixed Assets Net of Accumulated Depreciation",{"$f":"IF(P57,\"Unable to Determine\",IF(VLOOKUP(M57,S:T,2,0)=\"\",\"-\",VLOOKUP(M57,S:T,2,0)))","v":"-"},null,null,null,"see calculated values below",null,null,null,null,null,null,"tb_NPA",{"$f":"VLOOKUP(M57,S:T,2,0)","v":0},"cb_utd_NPA",{"$f":"VLOOKUP($O57,$S:$T,2,0)","v":false},null,null,"hyp_K_num","( Unrestricted Cash ) * 365 days/year"]
["Step 4b. Income Statement",null,null,null,null,null,null,null,null,null,null,null,null,null,null,null,null,null,"hyp_K_dem","Operating Expenses - Annual Depreciaton Expense"]
["Operating Revenue",{"$f":"IF(P59,\"Unable to Determine\",IF(VLOOKUP(M59,S:T,2,0)=\"\",\"-\",VLOOKUP(M59,S:T,2,0)))","v":"-"},null,null,null,"see calculated values below",null,null,null,null,null,null,"tb_Revenue",{"$f":"VLOOKUP(M59,S:T,2,0)","v":0},"cb_utd_revenue",{"$f":"VLOOKUP($O59,$S:$T,2,0)","v":false},null,null,"hyp_TOLTD","Total Outstanding Long-Term Debt"]
["Operating Expenses",{"$f":"IF(P60,\"Unable to Determine\",IF(VLOOKUP(M60,S:T,2,0)=\"\",\"-\",VLOOKUP(M60,S:T,2,0)))","v":"-"},null,null,null,"see calculated values below",null,null,null,null,null,null,"tb_Expenses",{"$f":"VLOOKUP(M60,S:T,2,0)","v":0},"cb_utd_expenses",{"$f":"VLOOKUP($O60,$S:$T,2,0)","v":false},null,null,"hyp_NFA","Net Fixed Assets"]
["Annual Depreciation Expense",{"$f":"IF(P61,\"Unable to Determine\",IF(VLOOKUP(M61,S:T,2,0)=\"\",\"-\",VLOOKUP(M61,S:T,2,0)))","v":"-"},null,null,null,"see calculated values below",null,null,null,null,null,null,"tb_ADE",{"$f":"VLOOKUP(M61,S:T,2,0)","v":0},"cb_utd_ADE",{"$f":"VLOOKUP($O61,$S:$T,2,0)","v":false},null,null,"hyp_ADE","Annual Depreciation Expense"]
["Change in Net Assets",{"$f":"IF(P62,\"Unable to Determine\",IF(VLOOKUP(M62,S:T,2,0)=\"\",\"-\",VLOOKUP(M62,S:T,2,0)))","v":"-"},{"$f":"IF(B62=\"-\",0,IF(B62>0,H62,0))","v":0},"/",{"$f":"H62","v":5},"> $0","=",5,null,null,{"$f":"IF(C62=E62,\"Yes\",\"No\")","v":"No"},null,"tb_change_in_net_assets",{"$f":"VLOOKUP(M62,S:T,2,0)","v":0},"cb_utd_tb_change_in_net_assets",{"$f":"VLOOKUP($O62,$S:$T,2,0)","v":false},null,null,"hyp_NFA_2","        Net Fixed Assets         .   "]
["Annual Interest Expense",{"$f":"IF(P63,\"Unable to Determine\",IF(VLOOKUP(M63,S:T,2,0)=\"\",\"-\",VLOOKUP(M63,S:T,2,0)))","v":"-"},null,null,null,"see calculated values below",null,null,null,null,null,null,"tb_annual_Interest_expense",{"$f":"VLOOKUP(M63,S:T,2,0)","v":0},"cb_utd_tb_annual_Interest_expense",{"$f":"VLOOKUP($O63,$S:$T,2,0)","v":false},null,null,"lb_viabilityscorelabel","Viability Score"]
["Step 4c. Statement of Cash Flows",{"$f":"IF(N65=\"\",\"\",VLOOKUP(N65,AA:AB,2,0))","v":""},null,null,null,null,null,null,null,null,null,null,null,null,null,null,null,null,"lb_Viability"]
["Annual Debt Principal Payments",{"$f":"IF(P65,\"Unable to Determine\",IF(VLOOKUP(M65,S:T,2,0)=\"\",\"-\",VLOOKUP(M65,S:T,2,0)))","v":"-"},null,null,null,"see calculated values below",null,null,null,null,null,null,"tb_ADSP",null,"cb_utd_ADSP",{"$f":"VLOOKUP($O65,$S:$T,2,0)","v":false},null,null,"ob_transfers_no",false]
["Step 4d. Fund Transfers",null,null,null,null,null,null,null,null,null,null,null,null,null,null,null,null,null,"ob_transfers_yes",false]
["County or Municipal Owned?",{"$f":"IF(M67=\"\",\"\",IF(N67,\"Yes\",IF(P67,\"No\",IF(NOT(OR(N67,P67)),\"-\",\"Check\"))))","v":"-"},null,null,null,"Non-county/municipal","=","N/A",null,null,null,null,"ob_county_or_muni_owned_yes",{"$f":"VLOOKUP($M67,$S:$T,2,0)","v":false},"ob_county_or_muni_owned_no",{"$f":"VLOOKUP($O67,$S:$T,2,0)","v":false},null,null,"ob_transfersfrom_no",false]
["Transfers to/from General Fund (GF)",{"$f":"IF(N71,F71,IF(N70,F70,IF(N69,F69,IF(P68,F68,\"\"))))","v":""},{"$f":"SUM(Q68:Q71)","v":0},"/",{"$f":"MAX(H68:H71)","v":5},"No Transfers","=",5,null,null,{"$f":"IF(C68=E68,\"Yes\",\"No\")","v":"No"},null,"ob_transfers_yes",{"$f":"VLOOKUP($M68,$S:$T,2,0)","v":false},"ob_transfers_no",{"$f":"VLOOKUP($O68,$S:$T,2,0)","v":false},{"$f":"IF(AND(N68=FALSE,P68=FALSE),\"\",IF(P68,H68,\"\"))","v":""},null,"ob_transfersfrom_yes",false]
[null,null,null,null,null,"Transfers from GF","=",0,null,null,null,null,"ob_transfersfrom_yes",{"$f":"VLOOKUP($M69,$S:$T,2,0)","v":false},"ob_transfersfrom_no",{"$f":"VLOOKUP($O69,$S:$T,2,0)","v":false},{"$f":"IF(AND(N69=FALSE,P69=FALSE),\"\",IF(P69,H69,\"\"))","v":""},null,"ob_transfers_to_5_no",false]
[null,null,null,null,null,"Transfers to GF of 5-10% of Gross Revenues","=",2,null,null,null,null,"ob_transfers_to_5_yes",{"$f":"VLOOKUP($M70,$S:$T,2,0)","v":false},"ob_transfers_to_5_no",{"$f":"VLOOKUP($O70,$S:$T,2,0)","v":false},{"$f":"IF(AND(N70=FALSE,P70=FALSE),\"\",IF(N70,H70,0))","v":""},null,"ob_transfers_to_5_yes",false]
[null,null,null,null,null,"Transfers to GF > 10% of Gross Revenues","=",0,null,null,null,null,"ob_transfers_to_10_yes",{"$f":"VLOOKUP($M71,$S:$T,2,0)","v":false},"ob_transfers_to_10_no",{"$f":"VLOOKUP($O71,$S:$T,2,0)","v":false},{"$f":"IF(AND(N71=FALSE,P71=FALSE),\"\",IF(N71,H71,0))","v":""},null,"ob_transfers_to_10_no",false]
["Step 4e. Calculated Financial Measures",null,null,null,null,null,null,null,null,null,null,null,null,null,null,null,null,null,"ob_transfers_to_10_yes",false]
["Debt Service Coverage\n(Operating Revenues - Operating Expenses + Annual Depreciation Expense) / (Annual Interest Expense + Annual Debt Principal Payments)",{"$f":"IF(P73=FALSE,\"Cannot Calculate\",IF(P74=\"No debt\",\"No Debt\",IF(N73=\"\",\"\",VLOOKUP(M73,S:T,2,0))))","v":"Cannot Calculate"},{"$f":"IF(B73=\"No debt\",H77,N101)","v":0},"/",{"$f":"MAX(H73:H77)","v":10},"< 1.1 or unknown","=",0,null,null,{"$f":"IF(C73=E73,\"Yes\",\"No\")","v":"No"},null,"tb_debtservicecoverage",{"$f":"IF(VLOOKUP($M73,$S:$T,2,0)=\"\",\"\",VLOOKUP($M73,$S:$T,2,0))","v":""},"calc?",{"$f":"IFERROR(IF(B63+B65=0,TRUE,IF(OR(P59,P60,P63,P65),FALSE,TRUE)),FALSE)","v":false},null,null,"lb_incomplete"," "]
[null,null,null,null,null,"≥ 1.1 but < 1.25","=",3,null,null,null,null,null,null,"no debt?",{"$f":"IFERROR(IF(B63+B65=0,\"No Debt\",\"\"),\"\")","v":""},null,null,"lb_SB_Water_Compare"]
[null,null,null,null,null,"≥ 1.25 but < 1.50","=",5,null,null,null,null,null,null,null,null,null,null,"lb_SB_Sewer_Compare"]
[null,null,null,null,null,"≥ 1.50 but < 2.0","=",8,null,null,null,null,null,null,null,null,null,null,"lb_SB_combined_Compare"]
[null,null,null,null,null,"≥ 2.0 or no debt","=",10,null,null,null,null,null,null,null,null,null,null,"tb_age_ww_pumping"]
["Days Cash on Hand\n(Unrestricted Cash * 365 days/year) / (Operating Expenses - Annual Depreciation Expense)",{"$f":"IF(P78=FALSE,\"Cannot Calculate\",IF(N78=\"\",\"\",VLOOKUP(M78,S:T,2,0)))","v":"Cannot Calculate"},{"$f":"N108","v":0},"/",{"$f":"MAX(H78:H82)","v":10},"< 90 days","=",0,null,null,{"$f":"IF(C78=E78,\"Yes\",\"No\")","v":"No"},null,"tb_days_cash_on_hand",{"$f":"IF(VLOOKUP($M78,$S:$T,2,0)=\"\",\"\",VLOOKUP($M78,$S:$T,2,0))","v":""},"calc?",{"$f":"IF(OR(OR(N55=0,N60=0),OR(P55,P60)),FALSE,TRUE)","v":false},null,null,"tb_age_collection"]
[null,null,null,null,null,"≥ 90 but <180 days","=",5,null,null,null,null,null,null,null,null,null,null,"cb_collection",false]
[null,null,null,null,null,"≥ 180 but < 240 days","=",8,null,null,null,null,null,null,null,null,null,null,"cb_ww_pumping",false]
[null,null,null,null,null,"> 240 days","=",10,null,null,null,null,null,null,null,null,null,null,"tb_SewerBill"]
[null,null,null,null,null,"Unrestricted Cash or Op. Expenses = 0 or Unknown","=",0,null,null,null,null,null,null,null,null,null,null,"tb_ww_CAO"]
["Debt to Net Fixed Assets\nTotal Outstanding Long-Term Debt / Net Fixed Assets",{"$f":"IF(OR(B56=\"-\",B56=0),\"N/A\",IF(P83=FALSE,\"Cannot Calculate\",IF(N83=\"\",\"\",VLOOKUP(M83,S:T,2,0)/100)))","v":"N/A"},{"$f":"IF(B83<0.5,H83,IF(B56=0,\"N/A\",IF(P83=FALSE,H84,0)))","v":0},"/",{"$f":"IF(OR(B56=0,B56=\"-\"),\"N/A\",5)","v":"N/A"},"Less than 50%","=",5,null,null,{"$f":"IF(C83=E83,\"Yes\",\"No\")","v":"No"},null,"tb_debt_to_net_plant_assets",{"$f":"IF(VLOOKUP($M83,$S:$T,2,0)=\"\",\"\",VLOOKUP($M83,$S:$T,2,0))","v":""},"calc?",{"$f":"IF(OR(P56,P57),FALSE,TRUE)","v":true},null,null,"tb_ww_NOV"]
[null,null,null,null,null,"Long Term Debt or Net Fixed Assets Unknown","=",0,null,null,null,null,null,null,null,null,null,null,"ob_WW_inspection_yes",false]
[null,null,null,null,null,"Long Term Debt = 0","=","N/A",null,null,null,null,null,null,null,null,null,null,"ob_WW_inspection_no",false]
["Asset Conditions\nNet Fixed Assets / Annual Depreciation Expense",{"$f":"IF(P86=FALSE,\"Cannot Calculate\",IF(N86=\"\",\"\",VLOOKUP(M86,S:T,2,0)))","v":""},{"$f":"IF(OR(B86=\"\",B86=\"Cannot Calculate\"),0,IF(B86>=25,H86,0))","v":0},"/",5,"≥ 25 years","=",5,null,null,{"$f":"IF(C86=E86,\"Yes\",\"No\")","v":"No"},null,"tb_asset_conditions",{"$f":"IF(VLOOKUP($M86,$S:$T,2,0)=\"\",\"\",VLOOKUP($M86,$S:$T,2,0))","v":""},"calc?",{"$f":"IF(OR(P57,P61),FALSE,TRUE)","v":true},null,null,"tb_age_pumpingtreatment"]
[null,null,null,null,null,"Net fixed assets or depreciation expense unknown or =0","=",0,null,null,null,null,null,null,null,null,"only 1","combined","tb_age_distribution"]
["Annual Bill as % of MHI\n(Monthly Bill * 12 months * 100) / Median Household Income",{"$f":"IFERROR(IF(B10=\"Water & Sewer\",_xlfn.CONCAT(\"Water Bill: \",CHAR(10),TEXT(N88,\"0.00%\"),\" of MHI\",CHAR(10),\"Sewer Bill: \",CHAR(10),TEXT(N89,\"0.00%\"),\" of MHI\"),IF(B10=\"Water Only\",_xlfn.CONCAT(\"Water Bill: \",TEXT(N88,\"0.00%\"),\" of MHI\"),IF(B10=\"Sewer Only\",_xlfn.CONCAT(\"Sewer Bill: \",TEXT(N89,\"0.00%\"),\" of MHI\"),0))),\"Cannot Calculate\")","v":0},{"$f":"IFERROR(IF(B10=\"Water & Sewer\",SUM(R88:R90),IF(B10=\"Water Only\",Q88,IF(B10=\"Sewer Only\",Q89,\"-\"))),0)","v":"-"},"/",10,"If Water/Sewer Only ",null,null,null,null,{"$f":"IF(C88=E88,\"Yes\",\"No\")","v":"No"},null,"tb_BillpercentMHI_water",{"$f":"B14*12/$B$47","v":{"$error":"#VALUE!"}},1.2500000000000001E-2,1.4999999999999999E-2,{"$f":"IF(AND(N88>=0.01,N88<0.0125),4,IF(AND(N88>=0.0125,N88<0.02),10,0))","v":{"$error":"#VALUE!"}},{"$f":"IF(AND(N88>=0.01,N88<0.0125),2,IF(AND(N88>=0.0125,N88<0.02),5,0))","v":{"$error":"#VALUE!"}},"cb_distribution",false]
[null,null,null,null,null,"≥1% and <1.25%","=",4,null,null,null,null,"tb_BillpercentMHI_sewer",{"$f":"B15*12/$B$47","v":{"$error":"#VALUE!"}},1.2500000000000001E-2,1.4999999999999999E-2,{"$f":"IF(AND(N89>=0.01,N89<0.0125),4,IF(AND(N89>=0.0125,N89<0.02),10,0))","v":{"$error":"#VALUE!"}},{"$f":"IF(AND(N89>=0.01,N89<0.0125),2,IF(AND(N89>=0.0125,N89<0.02),5,0))","v":{"$error":"#VALUE!"}},"cb_water_pumping",false]
[null,null,null,null,null,"≥1.25% and <2%","=",10,null,null,null,null,null,null,null,null,null,null,"tb_WaterBill"]
[null,null,null,null,null,"If Both Water & Sewer:",null,null,null,null,null,null,null,null,null,null,null,null,"tb_w_unsat_inspections"]
[null,null,null,null,null,"Water: ≥1% and <1.25%","=",2,null,null,null,null,null,null,null,null,null,null,"tb_w_NOV"]
[null,null,null,null,null,"Water: ≥1.25% and <2%","=",5,null,null,null,null,null,null,null,null,null,null,"tb_w_CAO"]
[null,null,null,null,null,"Sewer: ≥1% and <1.25%","=",2,null,null,null,null,null,null,null,null,null,null,"ob_W_inspection_yes",false]
[null,null,null,null,null,"Sewer: ≥1.25% and <2%","=",5,null,null,null,null,"step 4a",{"$f":"COUNTIF(G54:G56,\"-\")","v":0},null,null,null,null,"ob_W_inspection_no",false]
[null,null,null,null,null,null,null,null,null,null,null,null,"step 4b",{"$f":"COUNTIF(G58:G62,\"-\")","v":0},null,null,null,null,"ob_rate_increase_1",false]
[null,null,null,null,null,null,null,null,null,null,null,null,"step 4d",{"$f":"COUNTIF(G67:G70,\"-\")","v":0},null,null,null,null,"ob_rate_increase_2",false]
[null,null,null,null,null,null,null,null,null,null,null,null,null,null,null,null,null,null,"ob_rate_increase_3",false]
[null,null,null,null,null,null,null,null,null,null,null,null,null,null,null,null,null,null,"lb_financial_source","What is the source of the financial information you are using? "]
[null,null,null,null,null,null,null,null,null,null,null,null,null,null,null,null,null,null,"ob_audited_yes",false]
[null,null,null,null,null,null,null,null,null,null,null,null,"Debt Service Coverage",{"$f":"IFERROR(IF(B73<M103,0,INDEX(N103:N106,MATCH(B73,M103:M106,1))),0)","v":0},null,null,null,null,"ob_audited_no",false]
[null,null,null,null,null,null,null,null,null,null,null,null,"min","pts",null,null,null,null,"tb_financial_source"]
[null,null,null,null,null,null,null,null,null,null,null,null,1.1000000000000001,{"$f":"H74","v":3},null,null,null,null,"tb_fiscal_year"]
[null,null,null,null,null,null,null,null,null,null,null,null,1.25,{"$f":"H75","v":5},null,null,null,null,"cb_utd_revenue",false]
[null,null,null,null,null,null,null,null,null,null,null,null,1.5,{"$f":"H76","v":8},null,null,null,null,"cb_utd_expenses",false]
[null,null,null,null,null,null,null,null,null,null,null,null,2,{"$f":"H77","v":10},null,null,null,null,"cb_utd_ADE",false]
[null,null,null,null,null,null,null,null,null,null,null,null,null,null,null,null,null,null,"cb_utd_tb_change_in_net_assets",false]
[null,null,null,null,null,null,null,null,null,null,null,null,"Days in Cash",{"$f":"IFERROR(IF(B78<M110,0,INDEX(N110:N113,MATCH(B78,M110:M113,1))),0)","v":0},null,null,null,null,"cb_utd_tb_annual_Interest_expense",false]
[null,null,null,null,null,null,null,null,null,null,null,null,"min","pts",null,null,null,null,"cb_utd_ADSP",false]
[null,null,null,null,null,null,null,null,null,null,null,null,90,{"$f":"H79","v":5},null,null,null,null,"cb_utd_unrestrictedcash",false]
[null,null,null,null,null,null,null,null,null,null,null,null,180,{"$f":"H80","v":8},null,null,null,null,"cb_utd_TOLTD",false]
[null,null,null,null,null,null,null,null,null,null,null,null,240,{"$f":"H81","v":10},null,null,null,null,"cb_utd_NPA",false]
[null,null,null,null,null,null,null,null,null,null,null,null,null,null,null,null,null,null,"ob_county_or_muni_owned_no",false]
[null,null,null,null,null,null,null,null,null,null,null,null,null,null,null,null,null,null,"ob_county_or_muni_owned_yes",false]
[null,null,null,null,null,null,null,null,null,null,null,null,"> 100,000",{"$f":"IF(VLOOKUP(O115,$S:$T,2,0)=FALSE,0,1)","v":0},"ob_pop_option1",null,null,null,"ob_W_activeCAO_no",false]
[null,null,null,null,null,null,null,null,null,null,null,null,"50,001-100,000",{"$f":"IF(VLOOKUP(O116,$S:$T,2,0)=FALSE,0,1)","v":0},"ob_pop_option2",null,null,null,"ob_W_activeCAO_yes",false]
[null,null,null,null,null,null,null,null,null,null,null,null,"10,001-50,000",{"$f":"IF(VLOOKUP(O117,$S:$T,2,0)=FALSE,0,1)","v":0},"ob_pop_option3",null,null,null,"ob_WW_activeCAO_no",false]
[null,null,null,null,null,null,null,null,null,null,null,null,"3,300-10,000",{"$f":"IF(VLOOKUP(O118,$S:$T,2,0)=FALSE,0,1)","v":0},"ob_pop_option4",null,null,null,"ob_WW_activeCAO_yes",false]
[null,null,null,null,null,null,null,null,null,null,null,null,"Less than 3,300",{"$f":"IF(VLOOKUP(O119,$S:$T,2,0)=FALSE,0,1)","v":0},"ob_pop_option5",null,null,null,"lb_viability_max"]
[null,null,null,null,null,null,null,null,null,null,null,null,null,null,null,null,null,null,"lb_viability_percentage"]
[null,null,null,null,null,null,null,null,null,null,null,null,null,null,null,null,null,null,"ob_pop_option1",false]
[null,null,null,null,null,null,null,null,null,null,null,null,"ob_oper_water_FTE",{"$f":"IF(VLOOKUP($M122,$S:$T,2,0),\"X\",0)","v":0},"Full-Time Employee",null,null,null,"ob_pop_option2",false]
[null,null,null,null,null,null,null,null,null,null,null,null,"ob_oper_water_PTE",0,"Part-Time Employee",null,null,null,"ob_pop_option3",false]
[null,null,null,null,null,null,null,null,null,null,null,null,"ob_oper_water_OC",0,"Outside Contractor",null,null,null,"ob_pop_option4",false]
[null,null,null,null,null,null,null,null,null,null,null,null,"ob_oper_water_NA",0,"N/A",null,null,null,"ob_pop_option5",false]
[null,null,null,null,null,null,null,null,null,null,null,null,"ob_oper_WW_FTE",0,"Full-Time Employee",null,null,null,"tb_ww_unsat_inspections"]
[null,null,null,null,null,null,null,null,null,null,null,null,"ob_oper_WW_PTE",0,"Part-Time Employee",null,null,null,"lb_backgroundinfo_date1","Unemployment rates are from the Bureau of Labor Statistics (2024 annual averages by county). "]
[null,null,null,null,null,null,null,null,null,null,null,null,"ob_oper_WW_OC",0,"Outside Contractor",null,null,null,"lb_backgroundinfo_date2","All other data are from Census.gov (ACS 5 Year Estimates Data Profiles for 2022 and 2023)."]
[null,null,null,null,null,null,null,null,null,null,null,null,"ob_oper_WW_NA",0,"N/A",null,null,null,"tb_Username"]
[null,null,null,null,null,null,null,null,null,null,null,null,null,null,null,null,null,null,"OB_waterservice",false]
[null,null,null,null,null,null,null,null,null,null,null,null,null,null,null,null,null,null,"OB_sewerservice",false]
[null,null,null,null,null,null,null,null,null,null,null,null,null,null,null,null,null,null,"OB_bothservices",false]
[null,null,null,null,null,null,null,null,null,null,null,null,null,null,null,null,null,null,"ob_emergency_no",false]
[null,null,null,null,null,null,null,null,null,null,null,null,null,null,null,null,null,null,"ob_emergency_yes",false]
[null,null,null,null,null,null,null,null,null,null,null,null,null,null,null,null,null,null,"ob_oper_water_OC",false]
[null,null,null,null,null,null,null,null,null,null,null,null,null,null,null,null,null,null,"ob_oper_water_FTE",false]
[null,null,null,null,null,null,null,null,null,null,null,null,null,null,null,null,null,null,"ob_oper_water_PTE",false]
[null,null,null,null,null,null,null,null,null,null,null,null,null,null,null,null,null,null,"ob_oper_water_NA",false]
[null,null,null,null,null,null,null,null,null,null,null,null,null,null,null,null,null,null,"ob_oper_WW_NA",false]
[null,null,null,null,null,null,null,null,null,null,null,null,null,null,null,null,null,null,"ob_oper_WW_OC",false]
[null,null,null,null,null,null,null,null,null,null,null,null,null,null,null,null,null,null,"ob_oper_WW_FTE",false]
[null,null,null,null,null,null,null,null,null,null,null,null,null,null,null,null,null,null,"ob_oper_WW_PTE",false]
[null,null,null,null,null,null,null,null,null,null,null,null,null,null,null,null,null,null,"lb_backgroundinfo_link1","https://www.bls.gov/lau/"]
[null,null,null,null,null,null,null,null,null,null,null,null,null,null,null,null,null,null,"lb_backgroundinfo_link2","https://data.census.gov/advanced"]
[null,null,null,null,null,null,null,null,null,null,null,null,null,null,null,null,null,null,"ob_oper_WW_FTE"]
[null,null,null,null,null,null,null,null,null,null,null,null,null,null,null,null,null,null,"ob_oper_WW_PTE"]
[null,null,null,null,null,null,null,null,null,null,null,null,null,null,null,null,null,null,"ob_oper_WW_OC"]
[null,null,null,null,null,null,null,null,null,null,null,null,null,null,null,null,null,null,"ob_oper_WW_NA"]

{"sheet":"State","index":3,"n_rows":6,"n_cols":22,"rows_kept":6,"cut":false,"hidden":true,"merged":[[3,1,3,3],[0,8,0,19]]}
["Location","2022 5-yr population estimate","2023 5-yr population estimate","Pop Change","2023 Poverty Rate","2024 Unemployment Rate","2023 Median Household Income",null,"Data last pulled on 4/14/25 (ACS) and 5/28/25 (BLS). Updated unemployment stats are released in May; others are released in December."]
["South Carolina",5142750,5212774,1.3616061445724564E-2,14.2,4.0999999999999996,66818,null,"Unemployment rates are from the Bureau of Labor Statistics (2024 annual averages by county). ",null,null,null,null,null,null,null,null,null,null,null,"link","https://www.bls.gov/lau/"]
[null,null,null,null,null,null,null,null,"All other data are from Census.gov (ACS 5 Year Estimates Data Profiles for 2022 and 2023).",null,null,null,null,null,null,null,null,null,null,null,"link","https://data.census.gov/advanced"]
[null,"State Bill Comparison\n (80th Percentile Benchmark)"]
[null,"Water","Sewer","Combined"]
[null,41.39,51.08,{"$f":"SUM(B6:C6)","v":92.47},null,null,null,null,"Benchmarks are from RIA's FY21 Rate Survey"]

{"sheet":"County","index":4,"n_rows":47,"n_cols":7,"rows_kept":47,"cut":false,"hidden":true,"merged":[[0,8,0,19]]}
["Location","2022 5-yr population estimate","2023 5-yr population estimate","Pop Change","2023 Poverty Rate","2024 Unemployment Rate","2023 Median Household Income"]
["Abbeville County",24368,24352,{"$f":"(RawData52[[#This Row],[2023 5-yr population estimate]]-RawData52[[#This Row],[2022 5-yr population estimate]])/RawData52[[#This Row],[2022 5-yr population estimate]]","v":-6.5659881812212733E-4},14.1,4.5,52112]
["Aiken County",169865,171949,{"$f":"(RawData52[[#This Row],[2023 5-yr population estimate]]-RawData52[[#This Row],[2022 5-yr population estimate]])/RawData52[[#This Row],[2022 5-yr population estimate]]","v":1.2268566214346688E-2},13.9,4.2,67940]
["Allendale County",8073,7738,{"$f":"(RawData52[[#This Row],[2023 5-yr population estimate]]-RawData52[[#This Row],[2022 5-yr population estimate]])/RawData52[[#This Row],[2022 5-yr population estimate]]","v":-4.1496345844171931E-2},26.5,6.3,31603]
["Anderson County",204592,207218,{"$f":"(RawData52[[#This Row],[2023 5-yr population estimate]]-RawData52[[#This Row],[2022 5-yr population estimate]])/RawData52[[#This Row],[2022 5-yr population estimate]]","v":1.2835301478063658E-2},14.4,3.8,64683]
["Bamberg County",13311,13164,{"$f":"(RawData52[[#This Row],[2023 5-yr population estimate]]-RawData52[[#This Row],[2022 5-yr population estimate]])/RawData52[[#This Row],[2022 5-yr population estimate]]","v":-1.1043497858913681E-2},21.6,6.2,43206]
["Barnwell County",20653,20565,{"$f":"(RawData52[[#This Row],[2023 5-yr population estimate]]-RawData52[[#This Row],[2022 5-yr population estimate]])/RawData52[[#This Row],[2022 5-yr population estimate]]","v":-4.2608821962910959E-3},28.5,5.6,41800]
["Beaufort County",189071,192123,{"$f":"(RawData52[[#This Row],[2023 5-yr population estimate]]-RawData52[[#This Row],[2022 5-yr population estimate]])/RawData52[[#This Row],[2022 5-yr population estimate]]","v":1.6142084190595068E-2},10.5,3.8,84819]
["Berkeley County",231419,238723,{"$f":"(RawData52[[#This Row],[2023 5-yr population estimate]]-RawData52[[#This Row],[2022 5-yr population estimate]])/RawData52[[#This Row],[2022 5-yr population estimate]]","v":3.156179916082949E-2},10.3,3.7,82327]
["Calhoun County",14145,14150,{"$f":"(RawData52[[#This Row],[2023 5-yr population estimate]]-RawData52[[#This Row],[2022 5-yr population estimate]])/RawData52[[#This Row],[2022 5-yr population estimate]]","v":3.5348179568752211E-4},16.3,4.5999999999999996,56690]
["Charleston County",409840,414711,{"$f":"(RawData52[[#This Row],[2023 5-yr population estimate]]-RawData52[[#This Row],[2022 5-yr population estimate]])/RawData52[[#This Row],[2022 5-yr population estimate]]","v":1.1885125902791333E-2},11.6,3.4,84320]
["Cherokee County",56200,56299,{"$f":"(RawData52[[#This Row],[2023 5-yr population estimate]]-RawData52[[#This Row],[2022 5-yr population estimate]])/RawData52[[#This Row],[2022 5-yr population estimate]]","v":1.7615658362989323E-3},18.5,5.7,49047]
["Chester County",32171,32177,{"$f":"(RawData52[[#This Row],[2023 5-yr population estimate]]-RawData52[[#This Row],[2022 5-yr population estimate]])/RawData52[[#This Row],[2022 5-yr population estimate]]","v":1.8650337260265457E-4},19.3,5.5,51216]
["Chesterfield County",43536,43575,{"$f":"(RawData52[[#This Row],[2023 5-yr population estimate]]-RawData52[[#This Row],[2022 5-yr population estimate]])/RawData52[[#This Row],[2022 5-yr population estimate]]","v":8.9581036383682474E-4},20.2,4.7,47620]
["Clarendon County",31163,31037,{"$f":"(RawData52[[#This Row],[2023 5-yr population estimate]]-RawData52[[#This Row],[2022 5-yr population estimate]])/RawData52[[#This Row],[2022 5-yr population estimate]]","v":-4.0432564258896771E-3},18.5,5.5,48887]
["Colleton County",38561,38623,{"$f":"(RawData52[[#This Row],[2023 5-yr population estimate]]-RawData52[[#This Row],[2022 5-yr population estimate]])/RawData52[[#This Row],[2022 5-yr population estimate]]","v":1.6078421202769637E-3},18.7,4.5999999999999996,48779]
["Darlington County",63025,62754,{"$f":"(RawData52[[#This Row],[2023 5-yr population estimate]]-RawData52[[#This Row],[2022 5-yr population estimate]])/RawData52[[#This Row],[2022 5-yr population estimate]]","v":-4.2998809996033322E-3},20.3,4.8,47419]
["Dillon County",28255,28031,{"$f":"(RawData52[[#This Row],[2023 5-yr population estimate]]-RawData52[[#This Row],[2022 5-yr population estimate]])/RawData52[[#This Row],[2022 5-yr population estimate]]","v":-7.9278003893116268E-3},29.2,6,44038]
["Dorchester County",162139,164322,{"$f":"(RawData52[[#This Row],[2023 5-yr population estimate]]-RawData52[[#This Row],[2022 5-yr population estimate]])/RawData52[[#This Row],[2022 5-yr population estimate]]","v":1.3463756406540068E-2},11.5,3.7,76896]
["Edgefield County",26181,26508,{"$f":"(RawData52[[#This Row],[2023 5-yr population estimate]]-RawData52[[#This Row],[2022 5-yr population estimate]])/RawData52[[#This Row],[2022 5-yr population estimate]]","v":1.248997364500974E-2},16.399999999999999,3.9,67092]
["Fairfield County",20942,20741,{"$f":"(RawData52[[#This Row],[2023 5-yr population estimate]]-RawData52[[#This Row],[2022 5-yr population estimate]])/RawData52[[#This Row],[2022 5-yr population estimate]]","v":-9.5979371597746162E-3},16.899999999999999,5,46972]
["Florence County",137015,136921,{"$f":"(RawData52[[#This Row],[2023 5-yr population estimate]]-RawData52[[#This Row],[2022 5-yr population estimate]])/RawData52[[#This Row],[2022 5-yr population estimate]]","v":-6.8605627121118122E-4},18.3,4.4000000000000004,56650]
["Georgetown County",63594,64200,{"$f":"(RawData52[[#This Row],[2023 5-yr population estimate]]-RawData52[[#This Row],[2022 5-yr population estimate]])/RawData52[[#This Row],[2022 5-yr population estimate]]","v":9.5292008680064148E-3},14.4,4.5999999999999996,66734]
["Greenville County",528251,537575,{"$f":"(RawData52[[#This Row],[2023 5-yr population estimate]]-RawData52[[#This Row],[2022 5-yr population estimate]])/RawData52[[#This Row],[2022 5-yr population estimate]]","v":1.7650700140652835E-2},11,3.7,74624]
["Greenwood County",69309,69329,{"$f":"(RawData52[[#This Row],[2023 5-yr population estimate]]-RawData52[[#This Row],[2022 5-yr population estimate]])/RawData52[[#This Row],[2022 5-yr population estimate]]","v":2.8856281291030024E-4},17.100000000000001,5.2,50635]
["Hampton County",18890,18555,{"$f":"(RawData52[[#This Row],[2023 5-yr population estimate]]-RawData52[[#This Row],[2022 5-yr population estimate]])/RawData52[[#This Row],[2022 5-yr population estimate]]","v":-1.7734250926416093E-2},20,4,43059]
["Horry County",356578,368937,{"$f":"(RawData52[[#This Row],[2023 5-yr population estimate]]-RawData52[[#This Row],[2022 5-yr population estimate]])/RawData52[[#This Row],[2022 5-yr population estimate]]","v":3.4660018284919429E-2},12.8,4.7,64623]
["Jasper County",29444,30658,{"$f":"(RawData52[[#This Row],[2023 5-yr population estimate]]-RawData52[[#This Row],[2022 5-yr population estimate]])/RawData52[[#This Row],[2022 5-yr population estimate]]","v":4.1230811031109905E-2},18.3,4.0999999999999996,63503]
["Kershaw County",65779,66924,{"$f":"(RawData52[[#This Row],[2023 5-yr population estimate]]-RawData52[[#This Row],[2022 5-yr population estimate]])/RawData52[[#This Row],[2022 5-yr population estimate]]","v":1.7406771157968348E-2},14.1,4.0999999999999996,64343]
["Lancaster County",97611,100905,{"$f":"(RawData52[[#This Row],[2023 5-yr population estimate]]-RawData52[[#This Row],[2022 5-yr population estimate]])/RawData52[[#This Row],[2022 5-yr population estimate]]","v":3.3746196637674031E-2},12.3,4.3,74751]
["Laurens County",67456,67904,{"$f":"(RawData52[[#This Row],[2023 5-yr population estimate]]-RawData52[[#This Row],[2022 5-yr population estimate]])/RawData52[[#This Row],[2022 5-yr population estimate]]","v":6.6413662239089184E-3},17.600000000000001,4.4000000000000004,55517]
["Lee County",16557,16330,{"$f":"(RawData52[[#This Row],[2023 5-yr population estimate]]-RawData52[[#This Row],[2022 5-yr population estimate]])/RawData52[[#This Row],[2022 5-yr population estimate]]","v":-1.3710213202874917E-2},23.3,6.3,44145]
["Lexington County",295934,300370,{"$f":"(RawData52[[#This Row],[2023 5-yr population estimate]]-RawData52[[#This Row],[2022 5-yr population estimate]])/RawData52[[#This Row],[2022 5-yr population estimate]]","v":1.4989828813181318E-2},11.4,3.6,75014]
["Marion County",29212,28900,{"$f":"(RawData52[[#This Row],[2023 5-yr population estimate]]-RawData52[[#This Row],[2022 5-yr population estimate]])/RawData52[[#This Row],[2022 5-yr population estimate]]","v":-1.0680542242913871E-2},27.3,6.2,34501]
["Marlboro County",26585,26285,{"$f":"(RawData52[[#This Row],[2023 5-yr population estimate]]-RawData52[[#This Row],[2022 5-yr population estimate]])/RawData52[[#This Row],[2022 5-yr population estimate]]","v":-1.1284558961820575E-2},26.2,7.2,36293]
["McCormick County",9612,9701,{"$f":"(RawData52[[#This Row],[2023 5-yr population estimate]]-RawData52[[#This Row],[2022 5-yr population estimate]])/RawData52[[#This Row],[2022 5-yr population estimate]]","v":9.2592592592592587E-3},18,5.0999999999999996,55344]
["Newberry County",37918,38121,{"$f":"(RawData52[[#This Row],[2023 5-yr population estimate]]-RawData52[[#This Row],[2022 5-yr population estimate]])/RawData52[[#This Row],[2022 5-yr population estimate]]","v":5.353657893348805E-3},16,4.2,59670]
["Oconee County",78775,79566,{"$f":"(RawData52[[#This Row],[2023 5-yr population estimate]]-RawData52[[#This Row],[2022 5-yr population estimate]])/RawData52[[#This Row],[2022 5-yr population estimate]]","v":1.0041256743890828E-2},16.399999999999999,3.9,60193]
["Orangeburg County",84159,83531,{"$f":"(RawData52[[#This Row],[2023 5-yr population estimate]]-RawData52[[#This Row],[2022 5-yr population estimate]])/RawData52[[#This Row],[2022 5-yr population estimate]]","v":-7.4620658515429129E-3},23.9,6,43214]
["Pickens County",131106,132604,{"$f":"(RawData52[[#This Row],[2023 5-yr population estimate]]-RawData52[[#This Row],[2022 5-yr population estimate]])/RawData52[[#This Row],[2022 5-yr population estimate]]","v":1.1425869144051378E-2},17.2,4,59411]
["Richland County",416161,418725,{"$f":"(RawData52[[#This Row],[2023 5-yr population estimate]]-RawData52[[#This Row],[2022 5-yr population estimate]])/RawData52[[#This Row],[2022 5-yr population estimate]]","v":6.1610770831481082E-3},16.899999999999999,4.3,61699]
["Saluda County",18952,18958,{"$f":"(RawData52[[#This Row],[2023 5-yr population estimate]]-RawData52[[#This Row],[2022 5-yr population estimate]])/RawData52[[#This Row],[2022 5-yr population estimate]]","v":3.1658927817644573E-4},19.399999999999999,3.6,52957]
["Spartanburg County",330119,338096,{"$f":"(RawData52[[#This Row],[2023 5-yr population estimate]]-RawData52[[#This Row],[2022 5-yr population estimate]])/RawData52[[#This Row],[2022 5-yr population estimate]]","v":2.4164013582980683E-2},14.5,4.2,64195]
["Sumter County",105199,104853,{"$f":"(RawData52[[#This Row],[2023 5-yr population estimate]]-RawData52[[#This Row],[2022 5-yr population estimate]])/RawData52[[#This Row],[2022 5-yr population estimate]]","v":-3.2890046483331592E-3},16.399999999999999,5.2,55990]
["Union County",27158,26990,{"$f":"(RawData52[[#This Row],[2023 5-yr population estimate]]-RawData52[[#This Row],[2022 5-yr population estimate]])/RawData52[[#This Row],[2022 5-yr population estimate]]","v":-6.1860225347963767E-3},22.7,5.5,41200]
["Williamsburg County",30879,30517,{"$f":"(RawData52[[#This Row],[2023 5-yr population estimate]]-RawData52[[#This Row],[2022 5-yr population estimate]])/RawData52[[#This Row],[2022 5-yr population estimate]]","v":-1.1723177564040286E-2},23.6,6.6,43471]
["York County",282987,288559,{"$f":"(RawData52[[#This Row],[2023 5-yr population estimate]]-RawData52[[#This Row],[2022 5-yr population estimate]])/RawData52[[#This Row],[2022 5-yr population estimate]]","v":1.9689950421750823E-2},8.9,4,83060]

{"sheet":"Place","index":5,"n_rows":398,"n_cols":8,"rows_kept":398,"cut":false,"hidden":true,"merged":[[0,9,0,20]]}
["Location","County","2022 5-yr population estimate","2023 5-yr population estimate","Pop Change","2023 Poverty Rate","2024 Unemployment Rate (County)","2023 Median Household Income"]
["Abbeville city","Abbeville County",4892,4863,{"$f":"(RawData363[[#This Row],[2023 5-yr population estimate]]-RawData363[[#This Row],[2022 5-yr population estimate]])/RawData363[[#This Row],[2022 5-yr population estimate]]","v":-5.9280457890433357E-3},23.4,4.5,38983]
["Aiken city","Aiken County",32014,32334,{"$f":"(RawData363[[#This Row],[2023 5-yr population estimate]]-RawData363[[#This Row],[2022 5-yr population estimate]])/RawData363[[#This Row],[2022 5-yr population estimate]]","v":9.9956269132254645E-3},16.3,4.2,69837]
["Alcolu CDP","Clarendon County",385,426,{"$f":"(RawData363[[#This Row],[2023 5-yr population estimate]]-RawData363[[#This Row],[2022 5-yr population estimate]])/RawData363[[#This Row],[2022 5-yr population estimate]]","v":0.10649350649350649},44.4,5.5,41917]
["Allendale town","Allendale County",2702,2595,{"$f":"(RawData363[[#This Row],[2023 5-yr population estimate]]-RawData363[[#This Row],[2022 5-yr population estimate]])/RawData363[[#This Row],[2022 5-yr population estimate]]","v":-3.9600296076980013E-2},42.8,6.3,25250]
["Anderson city","Anderson County",29345,29563,{"$f":"(RawData363[[#This Row],[2023 5-yr population estimate]]-RawData363[[#This Row],[2022 5-yr population estimate]])/RawData363[[#This Row],[2022 5-yr population estimate]]","v":7.4288635201908331E-3},22.3,3.8,44321]
["Andrews town","Williamsburg County",3617,2558,{"$f":"(RawData363[[#This Row],[2023 5-yr population estimate]]-RawData363[[#This Row],[2022 5-yr population estimate]])/RawData363[[#This Row],[2022 5-yr population estimate]]","v":-0.29278407520044236},30.2,6.6,53611]
["Antreville CDP","Abbeville County",286,253,{"$f":"(RawData363[[#This Row],[2023 5-yr population estimate]]-RawData363[[#This Row],[2022 5-yr population estimate]])/RawData363[[#This Row],[2022 5-yr population estimate]]","v":-0.11538461538461539},24.1,4.5,136250]
["Arcadia CDP","Spartanburg County",2846,2724,{"$f":"(RawData363[[#This Row],[2023 5-yr population estimate]]-RawData363[[#This Row],[2022 5-yr population estimate]])/RawData363[[#This Row],[2022 5-yr population estimate]]","v":-4.286718200983837E-2},27.8,4.2,37574]
["Arcadia Lakes town","Richland County",871,843,{"$f":"(RawData363[[#This Row],[2023 5-yr population estimate]]-RawData363[[#This Row],[2022 5-yr population estimate]])/RawData363[[#This Row],[2022 5-yr population estimate]]","v":-3.2146957520091848E-2},2.8,4.3,96000]
["Arial CDP","Pickens County",1750,2024,{"$f":"(RawData363[[#This Row],[2023 5-yr population estimate]]-RawData363[[#This Row],[2022 5-yr population estimate]])/RawData363[[#This Row],[2022 5-yr population estimate]]","v":0.15657142857142858},10.5,4,50132]
["Atlantic Beach town","Horry County",332,283,{"$f":"(RawData363[[#This Row],[2023 5-yr population estimate]]-RawData363[[#This Row],[2022 5-yr population estimate]])/RawData363[[#This Row],[2022 5-yr population estimate]]","v":-0.14759036144578314},35.299999999999997,4.7,40000]
["Awendaw town","Charleston County",1548,1574,{"$f":"(RawData363[[#This Row],[2023 5-yr population estimate]]-RawData363[[#This Row],[2022 5-yr population estimate]])/RawData363[[#This Row],[2022 5-yr population estimate]]","v":1.6795865633074936E-2},15.9,3.4,70781]
["Aynor town","Horry County",989,1077,{"$f":"(RawData363[[#This Row],[2023 5-yr population estimate]]-RawData363[[#This Row],[2022 5-yr population estimate]])/RawData363[[#This Row],[2022 5-yr population estimate]]","v":8.8978766430738113E-2},8.6999999999999993,4.7,70972]
["Bamberg town","Bamberg County",3074,3036,{"$f":"(RawData363[[#This Row],[2023 5-yr population estimate]]-RawData363[[#This Row],[2022 5-yr population estimate]])/RawData363[[#This Row],[2022 5-yr population estimate]]","v":-1.2361743656473649E-2},31.9,6.2,27614]
["Barnwell city","Barnwell County",4643,4616,{"$f":"(RawData363[[#This Row],[2023 5-yr population estimate]]-RawData363[[#This Row],[2022 5-yr population estimate]])/RawData363[[#This Row],[2022 5-yr population estimate]]","v":-5.815205685978893E-3},33.1,5.6,43239]
["Batesburg-Leesville town","Saluda County",5004,4935,{"$f":"(RawData363[[#This Row],[2023 5-yr population estimate]]-RawData363[[#This Row],[2022 5-yr population estimate]])/RawData363[[#This Row],[2022 5-yr population estimate]]","v":-1.3788968824940047E-2},18.399999999999999,3.6,53102]
["Beaufort city","Beaufort County",13582,13660,{"$f":"(RawData363[[#This Row],[2023 5-yr population estimate]]-RawData363[[#This Row],[2022 5-yr population estimate]])/RawData363[[#This Row],[2022 5-yr population estimate]]","v":5.7428950080989543E-3},18,3.8,59454]
["Belton city","Anderson County",4357,4405,{"$f":"(RawData363[[#This Row],[2023 5-yr population estimate]]-RawData363[[#This Row],[2022 5-yr population estimate]])/RawData363[[#This Row],[2022 5-yr population estimate]]","v":1.1016754647693368E-2},19.2,3.8,48164]
["Belvedere CDP","Aiken County",5786,5458,{"$f":"(RawData363[[#This Row],[2023 5-yr population estimate]]-RawData363[[#This Row],[2022 5-yr population estimate]])/RawData363[[#This Row],[2022 5-yr population estimate]]","v":-5.6688558589699276E-2},16,4.2,57933]
["Bennettsville city","Marlboro County",6975,6798,{"$f":"(RawData363[[#This Row],[2023 5-yr population estimate]]-RawData363[[#This Row],[2022 5-yr population estimate]])/RawData363[[#This Row],[2022 5-yr population estimate]]","v":-2.5376344086021504E-2},23.5,7.2,40889]
["Berea CDP","Pickens County",16184,16642,{"$f":"(RawData363[[#This Row],[2023 5-yr population estimate]]-RawData363[[#This Row],[2022 5-yr population estimate]])/RawData363[[#This Row],[2022 5-yr population estimate]]","v":2.8299555116164114E-2},22,4,48104]
["Bethune town","Kershaw County",454,421,{"$f":"(RawData363[[#This Row],[2023 5-yr population estimate]]-RawData363[[#This Row],[2022 5-yr population estimate]])/RawData363[[#This Row],[2022 5-yr population estimate]]","v":-7.268722466960352E-2},35.200000000000003,4.0999999999999996,42656]
["Bishopville city","Lee County",2986,2958,{"$f":"(RawData363[[#This Row],[2023 5-yr population estimate]]-RawData363[[#This Row],[2022 5-yr population estimate]])/RawData363[[#This Row],[2022 5-yr population estimate]]","v":-9.3770931011386473E-3},29,6.3,44015]
["Blacksburg town","Cherokee County",2115,2158,{"$f":"(RawData363[[#This Row],[2023 5-yr population estimate]]-RawData363[[#This Row],[2022 5-yr population estimate]])/RawData363[[#This Row],[2022 5-yr population estimate]]","v":2.0330969267139481E-2},33.200000000000003,5.7,33500]
["Blackville town","Barnwell County",2034,1778,{"$f":"(RawData363[[#This Row],[2023 5-yr population estimate]]-RawData363[[#This Row],[2022 5-yr population estimate]])/RawData363[[#This Row],[2022 5-yr population estimate]]","v":-0.12586037364798427},28.2,5.6,26100]
["Blenheim town","Marlboro County",63,46,{"$f":"(RawData363[[#This Row],[2023 5-yr population estimate]]-RawData363[[#This Row],[2022 5-yr population estimate]])/RawData363[[#This Row],[2022 5-yr population estimate]]","v":-0.26984126984126983},11.6,7.2,66667]
["Bluffton town","Beaufort County",29375,31323,{"$f":"(RawData363[[#This Row],[2023 5-yr population estimate]]-RawData363[[#This Row],[2022 5-yr population estimate]])/RawData363[[#This Row],[2022 5-yr population estimate]]","v":6.6314893617021281E-2},4.8,3.8,105463]
["Blythewood town","Fairfield County",4890,5309,{"$f":"(RawData363[[#This Row],[2023 5-yr population estimate]]-RawData363[[#This Row],[2022 5-yr population estimate]])/RawData363[[#This Row],[2022 5-yr population estimate]]","v":8.5685071574642127E-2},3.6,5,105583]
["Boiling Springs CDP","Spartanburg County",11191,12609,{"$f":"(RawData363[[#This Row],[2023 5-yr population estimate]]-RawData363[[#This Row],[2022 5-yr population estimate]])/RawData363[[#This Row],[2022 5-yr population estimate]]","v":0.12670896255919936},9.1999999999999993,4.2,79798]
["Bonneau Beach CDP","Berkeley County",1500,1543,{"$f":"(RawData363[[#This Row],[2023 5-yr population estimate]]-RawData363[[#This Row],[2022 5-yr population estimate]])/RawData363[[#This Row],[2022 5-yr population estimate]]","v":2.8666666666666667E-2},16.899999999999999,3.7,57561]
["Bonneau town","Berkeley County",582,536,{"$f":"(RawData363[[#This Row],[2023 5-yr population estimate]]-RawData363[[#This Row],[2022 5-yr population estimate]])/RawData363[[#This Row],[2022 5-yr population estimate]]","v":-7.903780068728522E-2},33.200000000000003,3.7,58750]
["Bowman town","Orangeburg County",652,789,{"$f":"(RawData363[[#This Row],[2023 5-yr population estimate]]-RawData363[[#This Row],[2022 5-yr population estimate]])/RawData363[[#This Row],[2022 5-yr population estimate]]","v":0.21012269938650308},48.9,6,27500]
["Boykin CDP","Kershaw County",109,134,{"$f":"(RawData363[[#This Row],[2023 5-yr population estimate]]-RawData363[[#This Row],[2022 5-yr population estimate]])/RawData363[[#This Row],[2022 5-yr population estimate]]","v":0.22935779816513763},14.1,4.0999999999999996,134219]
["Bradley CDP","Greenwood County",163,207,{"$f":"(RawData363[[#This Row],[2023 5-yr population estimate]]-RawData363[[#This Row],[2022 5-yr population estimate]])/RawData363[[#This Row],[2022 5-yr population estimate]]","v":0.26993865030674846},78.3,5.2,50635]
["Branchville town","Orangeburg County",1301,1169,{"$f":"(RawData363[[#This Row],[2023 5-yr population estimate]]-RawData363[[#This Row],[2022 5-yr population estimate]])/RawData363[[#This Row],[2022 5-yr population estimate]]","v":-0.10146041506533436},15.6,6,40144]
["Briarcliffe Acres town","Horry County",568,499,{"$f":"(RawData363[[#This Row],[2023 5-yr population estimate]]-RawData363[[#This Row],[2022 5-yr population estimate]])/RawData363[[#This Row],[2022 5-yr population estimate]]","v":-0.12147887323943662},8.4,4.7,182083]
["Brookdale CDP","Orangeburg County",4069,4061,{"$f":"(RawData363[[#This Row],[2023 5-yr population estimate]]-RawData363[[#This Row],[2022 5-yr population estimate]])/RawData363[[#This Row],[2022 5-yr population estimate]]","v":-1.9660850331776848E-3},36.1,6,34279]
["Brunson town","Hampton County",525,457,{"$f":"(RawData363[[#This Row],[2023 5-yr population estimate]]-RawData363[[#This Row],[2022 5-yr population estimate]])/RawData363[[#This Row],[2022 5-yr population estimate]]","v":-0.12952380952380951},24.3,4,37391]
["Bucksport CDP","Horry County",744,583,{"$f":"(RawData363[[#This Row],[2023 5-yr population estimate]]-RawData363[[#This Row],[2022 5-yr population estimate]])/RawData363[[#This Row],[2022 5-yr population estimate]]","v":-0.21639784946236559},13.2,4.7,64623]
["Buffalo CDP","Union County",1159,1232,{"$f":"(RawData363[[#This Row],[2023 5-yr population estimate]]-RawData363[[#This Row],[2022 5-yr population estimate]])/RawData363[[#This Row],[2022 5-yr population estimate]]","v":6.2985332182916312E-2},43.6,5.5,21831]
["Burnettown town","Aiken County",3052,3090,{"$f":"(RawData363[[#This Row],[2023 5-yr population estimate]]-RawData363[[#This Row],[2022 5-yr population estimate]])/RawData363[[#This Row],[2022 5-yr population estimate]]","v":1.2450851900393184E-2},26.7,4.2,38371]
["Burton CDP","Beaufort County",7603,7132,{"$f":"(RawData363[[#This Row],[2023 5-yr population estimate]]-RawData363[[#This Row],[2022 5-yr population estimate]])/RawData363[[#This Row],[2022 5-yr population estimate]]","v":-6.1949230566881494E-2},10.6,3.8,57315]
["Calhoun Falls town","Abbeville County",1939,1897,{"$f":"(RawData363[[#This Row],[2023 5-yr population estimate]]-RawData363[[#This Row],[2022 5-yr population estimate]])/RawData363[[#This Row],[2022 5-yr population estimate]]","v":-2.1660649819494584E-2},15.6,4.5,35527]
["Camden city","Kershaw County",7834,8025,{"$f":"(RawData363[[#This Row],[2023 5-yr population estimate]]-RawData363[[#This Row],[2022 5-yr population estimate]])/RawData363[[#This Row],[2022 5-yr population estimate]]","v":2.4380903752872097E-2},16.7,4.0999999999999996,53289]
["Cameron town","Calhoun County",486,451,{"$f":"(RawData363[[#This Row],[2023 5-yr population estimate]]-RawData363[[#This Row],[2022 5-yr population estimate]])/RawData363[[#This Row],[2022 5-yr population estimate]]","v":-7.2016460905349799E-2},15.3,4.5999999999999996,72500]
["Campobello town","Spartanburg County",866,888,{"$f":"(RawData363[[#This Row],[2023 5-yr population estimate]]-RawData363[[#This Row],[2022 5-yr population estimate]])/RawData363[[#This Row],[2022 5-yr population estimate]]","v":2.5404157043879907E-2},8.5,4.2,84063]
["Cane Savannah CDP","Sumter County",1534,1497,{"$f":"(RawData363[[#This Row],[2023 5-yr population estimate]]-RawData363[[#This Row],[2022 5-yr population estimate]])/RawData363[[#This Row],[2022 5-yr population estimate]]","v":-2.4119947848761408E-2},5.5,5.2,55990]
["Carlisle town","Union County",526,438,{"$f":"(RawData363[[#This Row],[2023 5-yr population estimate]]-RawData363[[#This Row],[2022 5-yr population estimate]])/RawData363[[#This Row],[2022 5-yr population estimate]]","v":-0.16730038022813687},6.4,5.5,59750]
["Catawba CDP","Chester County",1439,1225,{"$f":"(RawData363[[#This Row],[2023 5-yr population estimate]]-RawData363[[#This Row],[2022 5-yr population estimate]])/RawData363[[#This Row],[2022 5-yr population estimate]]","v":-0.14871438498957609},17.3,5.5,55385]
["Cayce city","Lexington County",13755,13718,{"$f":"(RawData363[[#This Row],[2023 5-yr population estimate]]-RawData363[[#This Row],[2022 5-yr population estimate]])/RawData363[[#This Row],[2022 5-yr population estimate]]","v":-2.6899309342057432E-3},17.8,3.6,58095]
["Centerville CDP","Anderson County",7217,6860,{"$f":"(RawData363[[#This Row],[2023 5-yr population estimate]]-RawData363[[#This Row],[2022 5-yr population estimate]])/RawData363[[#This Row],[2022 5-yr population estimate]]","v":-4.9466537342386034E-2},7.3,3.8,66912]
["Central Pacolet town","Spartanburg County",194,255,{"$f":"(RawData363[[#This Row],[2023 5-yr population estimate]]-RawData363[[#This Row],[2022 5-yr population estimate]])/RawData363[[#This Row],[2022 5-yr population estimate]]","v":0.31443298969072164},21.2,4.2,29500]
["Central town","Pickens County",5272,5299,{"$f":"(RawData363[[#This Row],[2023 5-yr population estimate]]-RawData363[[#This Row],[2022 5-yr population estimate]])/RawData363[[#This Row],[2022 5-yr population estimate]]","v":5.121396054628225E-3},31.4,4,58262]
["Chapin town","Lexington County",1543,1410,{"$f":"(RawData363[[#This Row],[2023 5-yr population estimate]]-RawData363[[#This Row],[2022 5-yr population estimate]])/RawData363[[#This Row],[2022 5-yr population estimate]]","v":-8.6195722618276086E-2},5.2,3.6,77632]
["Charleston city","Dorchester County",149960,152014,{"$f":"(RawData363[[#This Row],[2023 5-yr population estimate]]-RawData363[[#This Row],[2022 5-yr population estimate]])/RawData363[[#This Row],[2022 5-yr population estimate]]","v":1.3696985862896773E-2},12,3.7,90038]
["Cheraw town","Chesterfield County",5056,5024,{"$f":"(RawData363[[#This Row],[2023 5-yr population estimate]]-RawData363[[#This Row],[2022 5-yr population estimate]])/RawData363[[#This Row],[2022 5-yr population estimate]]","v":-6.3291139240506328E-3},35.4,4.7,27275]
["Cherryvale CDP","Sumter County",2843,3136,{"$f":"(RawData363[[#This Row],[2023 5-yr population estimate]]-RawData363[[#This Row],[2022 5-yr population estimate]])/RawData363[[#This Row],[2022 5-yr population estimate]]","v":0.10306014773126979},19.2,5.2,41563]
["Chesnee city","Spartanburg County",597,804,{"$f":"(RawData363[[#This Row],[2023 5-yr population estimate]]-RawData363[[#This Row],[2022 5-yr population estimate]])/RawData363[[#This Row],[2022 5-yr population estimate]]","v":0.34673366834170855},31.8,4.2,39375]
["Chester city","Chester County",5260,5241,{"$f":"(RawData363[[#This Row],[2023 5-yr population estimate]]-RawData363[[#This Row],[2022 5-yr population estimate]])/RawData363[[#This Row],[2022 5-yr population estimate]]","v":-3.612167300380228E-3},25,5.5,41231]
["Chesterfield town","Chesterfield County",1424,1497,{"$f":"(RawData363[[#This Row],[2023 5-yr population estimate]]-RawData363[[#This Row],[2022 5-yr population estimate]])/RawData363[[#This Row],[2022 5-yr population estimate]]","v":5.1264044943820225E-2},23.4,4.7,48167]
["City View CDP","Greenville County",1696,1172,{"$f":"(RawData363[[#This Row],[2023 5-yr population estimate]]-RawData363[[#This Row],[2022 5-yr population estimate]])/RawData363[[#This Row],[2022 5-yr population estimate]]","v":-0.30896226415094341},45.5,3.7,37625]
["Clarks Hill CDP","McCormick County",78,125,{"$f":"(RawData363[[#This Row],[2023 5-yr population estimate]]-RawData363[[#This Row],[2022 5-yr population estimate]])/RawData363[[#This Row],[2022 5-yr population estimate]]","v":0.60256410256410253},18.399999999999999,5.0999999999999996,40714]
["Clearwater CDP","Aiken County",3403,3124,{"$f":"(RawData363[[#This Row],[2023 5-yr population estimate]]-RawData363[[#This Row],[2022 5-yr population estimate]])/RawData363[[#This Row],[2022 5-yr population estimate]]","v":-8.1986482515427561E-2},14.4,4.2,50669]
["Clemson city","Anderson County",17557,17759,{"$f":"(RawData363[[#This Row],[2023 5-yr population estimate]]-RawData363[[#This Row],[2022 5-yr population estimate]])/RawData363[[#This Row],[2022 5-yr population estimate]]","v":1.150538246853107E-2},36.1,3.8,49713]
["Clifton CDP","Spartanburg County",962,861,{"$f":"(RawData363[[#This Row],[2023 5-yr population estimate]]-RawData363[[#This Row],[2022 5-yr population estimate]])/RawData363[[#This Row],[2022 5-yr population estimate]]","v":-0.104989604989605},45.8,4.2,48357]
["Clinton city","Laurens County",7624,7624,{"$f":"(RawData363[[#This Row],[2023 5-yr population estimate]]-RawData363[[#This Row],[2022 5-yr population estimate]])/RawData363[[#This Row],[2022 5-yr population estimate]]","v":0},26.5,4.4000000000000004,40372]
["Clio town","Marlboro County",679,591,{"$f":"(RawData363[[#This Row],[2023 5-yr population estimate]]-RawData363[[#This Row],[2022 5-yr population estimate]])/RawData363[[#This Row],[2022 5-yr population estimate]]","v":-0.12960235640648013},24.9,7.2,28875]
["Clover town","York County",6800,7013,{"$f":"(RawData363[[#This Row],[2023 5-yr population estimate]]-RawData363[[#This Row],[2022 5-yr population estimate]])/RawData363[[#This Row],[2022 5-yr population estimate]]","v":3.1323529411764708E-2},13.9,4,66992]
["Cokesbury CDP","Greenwood County",376,341,{"$f":"(RawData363[[#This Row],[2023 5-yr population estimate]]-RawData363[[#This Row],[2022 5-yr population estimate]])/RawData363[[#This Row],[2022 5-yr population estimate]]","v":-9.3085106382978719E-2},17.100000000000001,5.2,50635]
["Columbia city","Lexington County",136754,138019,{"$f":"(RawData363[[#This Row],[2023 5-yr population estimate]]-RawData363[[#This Row],[2022 5-yr population estimate]])/RawData363[[#This Row],[2022 5-yr population estimate]]","v":9.250186466209398E-3},23.3,3.6,55653]
["Converse CDP","Spartanburg County",241,424,{"$f":"(RawData363[[#This Row],[2023 5-yr population estimate]]-RawData363[[#This Row],[2022 5-yr population estimate]])/RawData363[[#This Row],[2022 5-yr population estimate]]","v":0.75933609958506221},12.5,4.2,50139]
["Conway city","Horry County",25121,26082,{"$f":"(RawData363[[#This Row],[2023 5-yr population estimate]]-RawData363[[#This Row],[2022 5-yr population estimate]])/RawData363[[#This Row],[2022 5-yr population estimate]]","v":3.8254846542733173E-2},20.3,4.7,54841]
["Cope town","Orangeburg County",28,27,{"$f":"(RawData363[[#This Row],[2023 5-yr population estimate]]-RawData363[[#This Row],[2022 5-yr population estimate]])/RawData363[[#This Row],[2022 5-yr population estimate]]","v":-3.5714285714285712E-2},55.6,6,43214]
["Cordova town","Orangeburg County",214,160,{"$f":"(RawData363[[#This Row],[2023 5-yr population estimate]]-RawData363[[#This Row],[2022 5-yr population estimate]])/RawData363[[#This Row],[2022 5-yr population estimate]]","v":-0.25233644859813081},13.8,6,73750]
["Coronaca CDP","Greenwood County",32,46,{"$f":"(RawData363[[#This Row],[2023 5-yr population estimate]]-RawData363[[#This Row],[2022 5-yr population estimate]])/RawData363[[#This Row],[2022 5-yr population estimate]]","v":0.4375},100,5.2,50635]
["Cottageville town","Colleton County",1144,1154,{"$f":"(RawData363[[#This Row],[2023 5-yr population estimate]]-RawData363[[#This Row],[2022 5-yr population estimate]])/RawData363[[#This Row],[2022 5-yr population estimate]]","v":8.7412587412587419E-3},9.8000000000000007,4.5999999999999996,68750]
["Coward town","Florence County",568,668,{"$f":"(RawData363[[#This Row],[2023 5-yr population estimate]]-RawData363[[#This Row],[2022 5-yr population estimate]])/RawData363[[#This Row],[2022 5-yr population estimate]]","v":0.176056338028169},36.1,4.4000000000000004,36250]
["Cowpens town","Spartanburg County",1862,2031,{"$f":"(RawData363[[#This Row],[2023 5-yr population estimate]]-RawData363[[#This Row],[2022 5-yr population estimate]])/RawData363[[#This Row],[2022 5-yr population estimate]]","v":9.0762620837808811E-2},31,4.2,37168]
["Cross Anchor CDP","Spartanburg County",25,89,{"$f":"(RawData363[[#This Row],[2023 5-yr population estimate]]-RawData363[[#This Row],[2022 5-yr population estimate]])/RawData363[[#This Row],[2022 5-yr population estimate]]","v":2.56},28.1,4.2,64195]
["Cross Hill town","Laurens County",522,502,{"$f":"(RawData363[[#This Row],[2023 5-yr population estimate]]-RawData363[[#This Row],[2022 5-yr population estimate]])/RawData363[[#This Row],[2022 5-yr population estimate]]","v":-3.8314176245210725E-2},14.5,4.4000000000000004,37083]
["Dalzell CDP","Sumter County",3417,2949,{"$f":"(RawData363[[#This Row],[2023 5-yr population estimate]]-RawData363[[#This Row],[2022 5-yr population estimate]])/RawData363[[#This Row],[2022 5-yr population estimate]]","v":-0.13696224758560141},13.3,5.2,52723]
["Darlington city","Darlington County",6172,6128,{"$f":"(RawData363[[#This Row],[2023 5-yr population estimate]]-RawData363[[#This Row],[2022 5-yr population estimate]])/RawData363[[#This Row],[2022 5-yr population estimate]]","v":-7.1289695398574207E-3},33.9,4.8,31240]
["Denmark city","Bamberg County",3156,3141,{"$f":"(RawData363[[#This Row],[2023 5-yr population estimate]]-RawData363[[#This Row],[2022 5-yr population estimate]])/RawData363[[#This Row],[2022 5-yr population estimate]]","v":-4.7528517110266158E-3},26.8,6.2,33100]
["Dentsville CDP","Richland County",16399,15396,{"$f":"(RawData363[[#This Row],[2023 5-yr population estimate]]-RawData363[[#This Row],[2022 5-yr population estimate]])/RawData363[[#This Row],[2022 5-yr population estimate]]","v":-6.1162265991828772E-2},17.100000000000001,4.3,44029]
["Dillon city","Dillon County",6454,6406,{"$f":"(RawData363[[#This Row],[2023 5-yr population estimate]]-RawData363[[#This Row],[2022 5-yr population estimate]])/RawData363[[#This Row],[2022 5-yr population estimate]]","v":-7.437248218159281E-3},38.6,6,34964]
["Donalds town","Abbeville County",374,352,{"$f":"(RawData363[[#This Row],[2023 5-yr population estimate]]-RawData363[[#This Row],[2022 5-yr population estimate]])/RawData363[[#This Row],[2022 5-yr population estimate]]","v":-5.8823529411764705E-2},15.6,4.5,49643]
["Due West town","Abbeville County",1148,1185,{"$f":"(RawData363[[#This Row],[2023 5-yr population estimate]]-RawData363[[#This Row],[2022 5-yr population estimate]])/RawData363[[#This Row],[2022 5-yr population estimate]]","v":3.2229965156794424E-2},11.2,4.5,52059]
["Duncan town","Spartanburg County",4053,4175,{"$f":"(RawData363[[#This Row],[2023 5-yr population estimate]]-RawData363[[#This Row],[2022 5-yr population estimate]])/RawData363[[#This Row],[2022 5-yr population estimate]]","v":3.0101159634838393E-2},17.100000000000001,4.2,51596]
["Dunean CDP","Greenville County",3427,3716,{"$f":"(RawData363[[#This Row],[2023 5-yr population estimate]]-RawData363[[#This Row],[2022 5-yr population estimate]])/RawData363[[#This Row],[2022 5-yr population estimate]]","v":8.4330318062445286E-2},16.7,3.7,50382]
["Easley city","Anderson County",23135,23942,{"$f":"(RawData363[[#This Row],[2023 5-yr population estimate]]-RawData363[[#This Row],[2022 5-yr population estimate]])/RawData363[[#This Row],[2022 5-yr population estimate]]","v":3.4882213097039115E-2},14.3,3.8,65330]
["East Gaffney CDP","Cherokee County",2972,3169,{"$f":"(RawData363[[#This Row],[2023 5-yr population estimate]]-RawData363[[#This Row],[2022 5-yr population estimate]])/RawData363[[#This Row],[2022 5-yr population estimate]]","v":6.6285329744279947E-2},28.8,5.7,26314]
["East Sumter CDP","Sumter County",789,852,{"$f":"(RawData363[[#This Row],[2023 5-yr population estimate]]-RawData363[[#This Row],[2022 5-yr population estimate]])/RawData363[[#This Row],[2022 5-yr population estimate]]","v":7.9847908745247151E-2},29.8,5.2,55990]
["Eastover town","Richland County",616,566,{"$f":"(RawData363[[#This Row],[2023 5-yr population estimate]]-RawData363[[#This Row],[2022 5-yr population estimate]])/RawData363[[#This Row],[2022 5-yr population estimate]]","v":-8.1168831168831168E-2},33.299999999999997,4.3,22750]
["Edgefield town","Edgefield County",2504,3977,{"$f":"(RawData363[[#This Row],[2023 5-yr population estimate]]-RawData363[[#This Row],[2022 5-yr population estimate]])/RawData363[[#This Row],[2022 5-yr population estimate]]","v":0.58825878594249204},32.799999999999997,3.9,37500]
["Edisto Beach town","Charleston County",884,987,{"$f":"(RawData363[[#This Row],[2023 5-yr population estimate]]-RawData363[[#This Row],[2022 5-yr population estimate]])/RawData363[[#This Row],[2022 5-yr population estimate]]","v":0.1165158371040724},3.5,3.4,81250]
["Edisto CDP","Orangeburg County",1904,2261,{"$f":"(RawData363[[#This Row],[2023 5-yr population estimate]]-RawData363[[#This Row],[2022 5-yr population estimate]])/RawData363[[#This Row],[2022 5-yr population estimate]]","v":0.1875},23.8,6,46644]
["Ehrhardt town","Bamberg County",462,416,{"$f":"(RawData363[[#This Row],[2023 5-yr population estimate]]-RawData363[[#This Row],[2022 5-yr population estimate]])/RawData363[[#This Row],[2022 5-yr population estimate]]","v":-9.9567099567099568E-2},9.6999999999999993,6.2,33984]
["Elgin CDP","Lancaster County",2882,2258,{"$f":"(RawData363[[#This Row],[2023 5-yr population estimate]]-RawData363[[#This Row],[2022 5-yr population estimate]])/RawData363[[#This Row],[2022 5-yr population estimate]]","v":-0.21651630811936157},4.4000000000000004,4.3,74167]
["Elgin town","Kershaw County",2065,2176,{"$f":"(RawData363[[#This Row],[2023 5-yr population estimate]]-RawData363[[#This Row],[2022 5-yr population estimate]])/RawData363[[#This Row],[2022 5-yr population estimate]]","v":5.375302663438257E-2},4.8,4.0999999999999996,84219]
["Elko town","Barnwell County",213,198,{"$f":"(RawData363[[#This Row],[2023 5-yr population estimate]]-RawData363[[#This Row],[2022 5-yr population estimate]])/RawData363[[#This Row],[2022 5-yr population estimate]]","v":-7.0422535211267609E-2},17.7,5.6,41023]
["Elloree town","Orangeburg County",993,1005,{"$f":"(RawData363[[#This Row],[2023 5-yr population estimate]]-RawData363[[#This Row],[2022 5-yr population estimate]])/RawData363[[#This Row],[2022 5-yr population estimate]]","v":1.2084592145015106E-2},20.100000000000001,6,33750]
["Enoree CDP","Laurens County",441,472,{"$f":"(RawData363[[#This Row],[2023 5-yr population estimate]]-RawData363[[#This Row],[2022 5-yr population estimate]])/RawData363[[#This Row],[2022 5-yr population estimate]]","v":7.029478458049887E-2},42.6,4.4000000000000004,55517]
["Estill town","Hampton County",2230,2287,{"$f":"(RawData363[[#This Row],[2023 5-yr population estimate]]-RawData363[[#This Row],[2022 5-yr population estimate]])/RawData363[[#This Row],[2022 5-yr population estimate]]","v":2.5560538116591928E-2},27.6,4,36547]
["Eureka Mill CDP","Chester County",1889,1732,{"$f":"(RawData363[[#This Row],[2023 5-yr population estimate]]-RawData363[[#This Row],[2022 5-yr population estimate]])/RawData363[[#This Row],[2022 5-yr population estimate]]","v":-8.311275807305453E-2},40.9,5.5,35980]
["Eutawville town","Orangeburg County",396,530,{"$f":"(RawData363[[#This Row],[2023 5-yr population estimate]]-RawData363[[#This Row],[2022 5-yr population estimate]])/RawData363[[#This Row],[2022 5-yr population estimate]]","v":0.3383838383838384},37.9,6,43214]
["Fair Play CDP","Anderson County",574,578,{"$f":"(RawData363[[#This Row],[2023 5-yr population estimate]]-RawData363[[#This Row],[2022 5-yr population estimate]])/RawData363[[#This Row],[2022 5-yr population estimate]]","v":6.9686411149825784E-3},28.5,3.8,113466]
["Fairfax town","Hampton County",2035,2037,{"$f":"(RawData363[[#This Row],[2023 5-yr population estimate]]-RawData363[[#This Row],[2022 5-yr population estimate]])/RawData363[[#This Row],[2022 5-yr population estimate]]","v":9.8280098280098278E-4},23.7,4,41328]
["Fairforest CDP","Spartanburg County",1626,1711,{"$f":"(RawData363[[#This Row],[2023 5-yr population estimate]]-RawData363[[#This Row],[2022 5-yr population estimate]])/RawData363[[#This Row],[2022 5-yr population estimate]]","v":5.2275522755227552E-2},22,4.2,60199]
["Fingerville CDP","Spartanburg County",99,238,{"$f":"(RawData363[[#This Row],[2023 5-yr population estimate]]-RawData363[[#This Row],[2022 5-yr population estimate]])/RawData363[[#This Row],[2022 5-yr population estimate]]","v":1.404040404040404},90.8,4.2,64195]
["Five Forks CDP","Greenville County",18592,19093,{"$f":"(RawData363[[#This Row],[2023 5-yr population estimate]]-RawData363[[#This Row],[2022 5-yr population estimate]])/RawData363[[#This Row],[2022 5-yr population estimate]]","v":2.6947074010327022E-2},2.1,3.7,140668]
["Florence city","Florence County",39931,40205,{"$f":"(RawData363[[#This Row],[2023 5-yr population estimate]]-RawData363[[#This Row],[2022 5-yr population estimate]])/RawData363[[#This Row],[2022 5-yr population estimate]]","v":6.8618366682527358E-3},18.100000000000001,4.4000000000000004,56433]
["Folly Beach city","Charleston County",1020,958,{"$f":"(RawData363[[#This Row],[2023 5-yr population estimate]]-RawData363[[#This Row],[2022 5-yr population estimate]])/RawData363[[#This Row],[2022 5-yr population estimate]]","v":-6.0784313725490195E-2},8.8000000000000007,3.4,97813]
["Forest Acres city","Richland County",10514,10491,{"$f":"(RawData363[[#This Row],[2023 5-yr population estimate]]-RawData363[[#This Row],[2022 5-yr population estimate]])/RawData363[[#This Row],[2022 5-yr population estimate]]","v":-2.1875594445501237E-3},8.1999999999999993,4.3,76417]
["Forestbrook CDP","Horry County",7414,7450,{"$f":"(RawData363[[#This Row],[2023 5-yr population estimate]]-RawData363[[#This Row],[2022 5-yr population estimate]])/RawData363[[#This Row],[2022 5-yr population estimate]]","v":4.8556784461828975E-3},6,4.7,77791]
["Fort Lawn town","Chester County",1149,1144,{"$f":"(RawData363[[#This Row],[2023 5-yr population estimate]]-RawData363[[#This Row],[2022 5-yr population estimate]])/RawData363[[#This Row],[2022 5-yr population estimate]]","v":-4.3516100957354219E-3},13.8,5.5,54141]
["Fort Mill town","Lancaster County",26022,28281,{"$f":"(RawData363[[#This Row],[2023 5-yr population estimate]]-RawData363[[#This Row],[2022 5-yr population estimate]])/RawData363[[#This Row],[2022 5-yr population estimate]]","v":8.6811159787871794E-2},3.7,4.3,127537]
["Fountain Inn city","Laurens County",10675,11307,{"$f":"(RawData363[[#This Row],[2023 5-yr population estimate]]-RawData363[[#This Row],[2022 5-yr population estimate]])/RawData363[[#This Row],[2022 5-yr population estimate]]","v":5.9203747072599532E-2},12.9,4.4000000000000004,72021]
["Furman town","Hampton County",559,747,{"$f":"(RawData363[[#This Row],[2023 5-yr population estimate]]-RawData363[[#This Row],[2022 5-yr population estimate]])/RawData363[[#This Row],[2022 5-yr population estimate]]","v":0.3363148479427549},4.7,4,57708]
["Gadsden CDP","Richland County",1373,1131,{"$f":"(RawData363[[#This Row],[2023 5-yr population estimate]]-RawData363[[#This Row],[2022 5-yr population estimate]])/RawData363[[#This Row],[2022 5-yr population estimate]]","v":-0.17625637290604515},24,4.3,54464]
["Gaffney city","Cherokee County",12651,12612,{"$f":"(RawData363[[#This Row],[2023 5-yr population estimate]]-RawData363[[#This Row],[2022 5-yr population estimate]])/RawData363[[#This Row],[2022 5-yr population estimate]]","v":-3.0827602561062368E-3},24.8,5.7,41214]
["Gantt CDP","Greenville County",14276,15057,{"$f":"(RawData363[[#This Row],[2023 5-yr population estimate]]-RawData363[[#This Row],[2022 5-yr population estimate]])/RawData363[[#This Row],[2022 5-yr population estimate]]","v":5.4707200896609694E-2},25.5,3.7,47265]
["Garden City CDP","Horry County",10885,10820,{"$f":"(RawData363[[#This Row],[2023 5-yr population estimate]]-RawData363[[#This Row],[2022 5-yr population estimate]])/RawData363[[#This Row],[2022 5-yr population estimate]]","v":-5.9715204409738175E-3},14.2,4.7,50027]
["Gaston town","Lexington County",1991,2026,{"$f":"(RawData363[[#This Row],[2023 5-yr population estimate]]-RawData363[[#This Row],[2022 5-yr population estimate]])/RawData363[[#This Row],[2022 5-yr population estimate]]","v":1.757910597689603E-2},24.3,3.6,59500]
["Gayle Mill CDP","Chester County",1082,1119,{"$f":"(RawData363[[#This Row],[2023 5-yr population estimate]]-RawData363[[#This Row],[2022 5-yr population estimate]])/RawData363[[#This Row],[2022 5-yr population estimate]]","v":3.4195933456561925E-2},32,5.5,51216]
["Georgetown city","Georgetown County",8465,8511,{"$f":"(RawData363[[#This Row],[2023 5-yr population estimate]]-RawData363[[#This Row],[2022 5-yr population estimate]])/RawData363[[#This Row],[2022 5-yr population estimate]]","v":5.4341405788541049E-3},15.8,4.5999999999999996,57704]
["Gifford town","Hampton County",201,200,{"$f":"(RawData363[[#This Row],[2023 5-yr population estimate]]-RawData363[[#This Row],[2022 5-yr population estimate]])/RawData363[[#This Row],[2022 5-yr population estimate]]","v":-4.9751243781094526E-3},17.5,4,29583]
["Gilbert town","Lexington County",563,563,{"$f":"(RawData363[[#This Row],[2023 5-yr population estimate]]-RawData363[[#This Row],[2022 5-yr population estimate]])/RawData363[[#This Row],[2022 5-yr population estimate]]","v":0},5.3,3.6,76364]
["Glendale CDP","Spartanburg County",254,173,{"$f":"(RawData363[[#This Row],[2023 5-yr population estimate]]-RawData363[[#This Row],[2022 5-yr population estimate]])/RawData363[[#This Row],[2022 5-yr population estimate]]","v":-0.31889763779527558},52,4.2,64195]
["Gloverville CDP","Aiken County",3099,2418,{"$f":"(RawData363[[#This Row],[2023 5-yr population estimate]]-RawData363[[#This Row],[2022 5-yr population estimate]])/RawData363[[#This Row],[2022 5-yr population estimate]]","v":-0.2197483059051307},10.199999999999999,4.2,51691]
["Golden Grove CDP","Anderson County",3282,3084,{"$f":"(RawData363[[#This Row],[2023 5-yr population estimate]]-RawData363[[#This Row],[2022 5-yr population estimate]])/RawData363[[#This Row],[2022 5-yr population estimate]]","v":-6.0329067641681902E-2},8.5,3.8,71694]
["Goose Creek city","Berkeley County",45858,46964,{"$f":"(RawData363[[#This Row],[2023 5-yr population estimate]]-RawData363[[#This Row],[2022 5-yr population estimate]])/RawData363[[#This Row],[2022 5-yr population estimate]]","v":2.4117929259889224E-2},6.6,3.7,87437]
["Govan town","Bamberg County",56,61,{"$f":"(RawData363[[#This Row],[2023 5-yr population estimate]]-RawData363[[#This Row],[2022 5-yr population estimate]])/RawData363[[#This Row],[2022 5-yr population estimate]]","v":8.9285714285714288E-2},9.8000000000000007,6.2,95833]
["Gramling CDP","Spartanburg County",79,89,{"$f":"(RawData363[[#This Row],[2023 5-yr population estimate]]-RawData363[[#This Row],[2022 5-yr population estimate]])/RawData363[[#This Row],[2022 5-yr population estimate]]","v":0.12658227848101267},14.5,4.2,64195]
["Graniteville CDP","Aiken County",2465,2176,{"$f":"(RawData363[[#This Row],[2023 5-yr population estimate]]-RawData363[[#This Row],[2022 5-yr population estimate]])/RawData363[[#This Row],[2022 5-yr population estimate]]","v":-0.11724137931034483},33.4,4.2,29495]
["Gray Court town","Laurens County",778,731,{"$f":"(RawData363[[#This Row],[2023 5-yr population estimate]]-RawData363[[#This Row],[2022 5-yr population estimate]])/RawData363[[#This Row],[2022 5-yr population estimate]]","v":-6.0411311053984576E-2},13,4.4000000000000004,64286]
["Great Falls town","Chester County",1669,1741,{"$f":"(RawData363[[#This Row],[2023 5-yr population estimate]]-RawData363[[#This Row],[2022 5-yr population estimate]])/RawData363[[#This Row],[2022 5-yr population estimate]]","v":4.3139604553624922E-2},33.5,5.5,30475]
["Greeleyville town","Williamsburg County",418,364,{"$f":"(RawData363[[#This Row],[2023 5-yr population estimate]]-RawData363[[#This Row],[2022 5-yr population estimate]])/RawData363[[#This Row],[2022 5-yr population estimate]]","v":-0.12918660287081341},26.9,6.6,31250]
["Greenville city","Greenville County",70838,71755,{"$f":"(RawData363[[#This Row],[2023 5-yr population estimate]]-RawData363[[#This Row],[2022 5-yr population estimate]])/RawData363[[#This Row],[2022 5-yr population estimate]]","v":1.2945029503938565E-2},14.1,3.7,68460]
["Greenwood city","Greenwood County",22528,22527,{"$f":"(RawData363[[#This Row],[2023 5-yr population estimate]]-RawData363[[#This Row],[2022 5-yr population estimate]])/RawData363[[#This Row],[2022 5-yr population estimate]]","v":-4.4389204545454547E-5},25.1,5.2,40253]
["Greer city","Greenville County",37010,39191,{"$f":"(RawData363[[#This Row],[2023 5-yr population estimate]]-RawData363[[#This Row],[2022 5-yr population estimate]])/RawData363[[#This Row],[2022 5-yr population estimate]]","v":5.8930018913807079E-2},9.9,3.7,80030]
["Hampton town","Hampton County",2725,2691,{"$f":"(RawData363[[#This Row],[2023 5-yr population estimate]]-RawData363[[#This Row],[2022 5-yr population estimate]])/RawData363[[#This Row],[2022 5-yr population estimate]]","v":-1.2477064220183486E-2},14.1,4,45809]
["Hanahan city","Berkeley County",20731,21119,{"$f":"(RawData363[[#This Row],[2023 5-yr population estimate]]-RawData363[[#This Row],[2022 5-yr population estimate]])/RawData363[[#This Row],[2022 5-yr population estimate]]","v":1.8715932661231973E-2},10.9,3.7,84061]
["Hardeeville city","Beaufort County",8048,9293,{"$f":"(RawData363[[#This Row],[2023 5-yr population estimate]]-RawData363[[#This Row],[2022 5-yr population estimate]])/RawData363[[#This Row],[2022 5-yr population estimate]]","v":0.15469681908548708},10.8,3.8,78233]
["Harleyville town","Dorchester County",879,653,{"$f":"(RawData363[[#This Row],[2023 5-yr population estimate]]-RawData363[[#This Row],[2022 5-yr population estimate]])/RawData363[[#This Row],[2022 5-yr population estimate]]","v":-0.25711035267349258},25.3,3.7,60231]
["Hartsville city","Darlington County",7450,7422,{"$f":"(RawData363[[#This Row],[2023 5-yr population estimate]]-RawData363[[#This Row],[2022 5-yr population estimate]])/RawData363[[#This Row],[2022 5-yr population estimate]]","v":-3.7583892617449664E-3},23.5,4.8,47720]
["Heath Springs town","Lancaster County",800,825,{"$f":"(RawData363[[#This Row],[2023 5-yr population estimate]]-RawData363[[#This Row],[2022 5-yr population estimate]])/RawData363[[#This Row],[2022 5-yr population estimate]]","v":3.125E-2},15.9,4.3,50500]
["Hemingway town","Williamsburg County",421,413,{"$f":"(RawData363[[#This Row],[2023 5-yr population estimate]]-RawData363[[#This Row],[2022 5-yr population estimate]])/RawData363[[#This Row],[2022 5-yr population estimate]]","v":-1.9002375296912115E-2},11.2,6.6,44375]
["Hickory Grove town","York County",541,559,{"$f":"(RawData363[[#This Row],[2023 5-yr population estimate]]-RawData363[[#This Row],[2022 5-yr population estimate]])/RawData363[[#This Row],[2022 5-yr population estimate]]","v":3.3271719038817003E-2},12.2,4,61250]
["Hilda town","Barnwell County",430,506,{"$f":"(RawData363[[#This Row],[2023 5-yr population estimate]]-RawData363[[#This Row],[2022 5-yr population estimate]])/RawData363[[#This Row],[2022 5-yr population estimate]]","v":0.17674418604651163},22.4,5.6,46111]
["Hilton Head Island town","Beaufort County",37708,37805,{"$f":"(RawData363[[#This Row],[2023 5-yr population estimate]]-RawData363[[#This Row],[2022 5-yr population estimate]])/RawData363[[#This Row],[2022 5-yr population estimate]]","v":2.5723984300413706E-3},8.4,3.8,96715]
["Hodges town","Greenwood County",173,177,{"$f":"(RawData363[[#This Row],[2023 5-yr population estimate]]-RawData363[[#This Row],[2022 5-yr population estimate]])/RawData363[[#This Row],[2022 5-yr population estimate]]","v":2.3121387283236993E-2},28.2,5.2,54531]
["Holly Hill town","Orangeburg County",1384,1415,{"$f":"(RawData363[[#This Row],[2023 5-yr population estimate]]-RawData363[[#This Row],[2022 5-yr population estimate]])/RawData363[[#This Row],[2022 5-yr population estimate]]","v":2.2398843930635837E-2},37,6,34792]
["Hollywood town","Dorchester County",5397,5330,{"$f":"(RawData363[[#This Row],[2023 5-yr population estimate]]-RawData363[[#This Row],[2022 5-yr population estimate]])/RawData363[[#This Row],[2022 5-yr population estimate]]","v":-1.2414304243098017E-2},9,3.7,77415]
["Homeland Park CDP","Anderson County",7451,6944,{"$f":"(RawData363[[#This Row],[2023 5-yr population estimate]]-RawData363[[#This Row],[2022 5-yr population estimate]])/RawData363[[#This Row],[2022 5-yr population estimate]]","v":-6.8044557777479531E-2},33.4,3.8,38079]
["Honea Path town","Anderson County",3662,3734,{"$f":"(RawData363[[#This Row],[2023 5-yr population estimate]]-RawData363[[#This Row],[2022 5-yr population estimate]])/RawData363[[#This Row],[2022 5-yr population estimate]]","v":1.9661387220098307E-2},25.6,3.8,56304]
["Hopkins CDP","Richland County",1738,1962,{"$f":"(RawData363[[#This Row],[2023 5-yr population estimate]]-RawData363[[#This Row],[2022 5-yr population estimate]])/RawData363[[#This Row],[2022 5-yr population estimate]]","v":0.12888377445339472},19.5,4.3,49464]
["India Hook CDP","York County",4385,3794,{"$f":"(RawData363[[#This Row],[2023 5-yr population estimate]]-RawData363[[#This Row],[2022 5-yr population estimate]])/RawData363[[#This Row],[2022 5-yr population estimate]]","v":-0.1347776510832383},1.1000000000000001,4,94505]
["Inman city","Spartanburg County",2987,3085,{"$f":"(RawData363[[#This Row],[2023 5-yr population estimate]]-RawData363[[#This Row],[2022 5-yr population estimate]])/RawData363[[#This Row],[2022 5-yr population estimate]]","v":3.2808838299296955E-2},16.8,4.2,55156]
["Inman Mills CDP","Spartanburg County",956,896,{"$f":"(RawData363[[#This Row],[2023 5-yr population estimate]]-RawData363[[#This Row],[2022 5-yr population estimate]])/RawData363[[#This Row],[2022 5-yr population estimate]]","v":-6.2761506276150625E-2},16.899999999999999,4.2,42031]
["Irmo town","Lexington County",11685,11799,{"$f":"(RawData363[[#This Row],[2023 5-yr population estimate]]-RawData363[[#This Row],[2022 5-yr population estimate]])/RawData363[[#This Row],[2022 5-yr population estimate]]","v":9.7560975609756097E-3},8.1,3.6,85137]
["Irwin CDP","Lancaster County",1868,1801,{"$f":"(RawData363[[#This Row],[2023 5-yr population estimate]]-RawData363[[#This Row],[2022 5-yr population estimate]])/RawData363[[#This Row],[2022 5-yr population estimate]]","v":-3.5867237687366167E-2},35.5,4.3,53795]
["Islandton CDP","Colleton County",40,54,{"$f":"(RawData363[[#This Row],[2023 5-yr population estimate]]-RawData363[[#This Row],[2022 5-yr population estimate]])/RawData363[[#This Row],[2022 5-yr population estimate]]","v":0.35},18.7,4.5999999999999996,38250]
["Isle of Palms city","Charleston County",4347,4350,{"$f":"(RawData363[[#This Row],[2023 5-yr population estimate]]-RawData363[[#This Row],[2022 5-yr population estimate]])/RawData363[[#This Row],[2022 5-yr population estimate]]","v":6.9013112491373362E-4},1.8,3.4,148029]
["Iva town","Anderson County",1030,937,{"$f":"(RawData363[[#This Row],[2023 5-yr population estimate]]-RawData363[[#This Row],[2022 5-yr population estimate]])/RawData363[[#This Row],[2022 5-yr population estimate]]","v":-9.0291262135922326E-2},35.200000000000003,3.8,24313]
["Jackson town","Aiken County",1882,1782,{"$f":"(RawData363[[#This Row],[2023 5-yr population estimate]]-RawData363[[#This Row],[2022 5-yr population estimate]])/RawData363[[#This Row],[2022 5-yr population estimate]]","v":-5.3134962805526036E-2},8.1,4.2,37067]
["Jacksonboro CDP","Colleton County",270,220,{"$f":"(RawData363[[#This Row],[2023 5-yr population estimate]]-RawData363[[#This Row],[2022 5-yr population estimate]])/RawData363[[#This Row],[2022 5-yr population estimate]]","v":-0.18518518518518517},20.5,4.5999999999999996,48779]
["James Island town","Charleston County",11689,11738,{"$f":"(RawData363[[#This Row],[2023 5-yr population estimate]]-RawData363[[#This Row],[2022 5-yr population estimate]])/RawData363[[#This Row],[2022 5-yr population estimate]]","v":4.1919753614509366E-3},5.4,3.4,100176]
["Jamestown town","Berkeley County",78,70,{"$f":"(RawData363[[#This Row],[2023 5-yr population estimate]]-RawData363[[#This Row],[2022 5-yr population estimate]])/RawData363[[#This Row],[2022 5-yr population estimate]]","v":-0.10256410256410256},1.4,3.7,82327]
["Jefferson town","Chesterfield County",830,753,{"$f":"(RawData363[[#This Row],[2023 5-yr population estimate]]-RawData363[[#This Row],[2022 5-yr population estimate]])/RawData363[[#This Row],[2022 5-yr population estimate]]","v":-9.2771084337349402E-2},21.6,4.7,35227]
["Jenkinsville town","Fairfield County",54,47,{"$f":"(RawData363[[#This Row],[2023 5-yr population estimate]]-RawData363[[#This Row],[2022 5-yr population estimate]])/RawData363[[#This Row],[2022 5-yr population estimate]]","v":-0.12962962962962962},72.3,5,46972]
["Joanna CDP","Laurens County",1406,1375,{"$f":"(RawData363[[#This Row],[2023 5-yr population estimate]]-RawData363[[#This Row],[2022 5-yr population estimate]])/RawData363[[#This Row],[2022 5-yr population estimate]]","v":-2.2048364153627313E-2},17.2,4.4000000000000004,42169]
["Johnsonville city","Williamsburg County",1108,1037,{"$f":"(RawData363[[#This Row],[2023 5-yr population estimate]]-RawData363[[#This Row],[2022 5-yr population estimate]])/RawData363[[#This Row],[2022 5-yr population estimate]]","v":-6.4079422382671475E-2},26.9,6.6,47891]
["Johnston town","Edgefield County",2375,2518,{"$f":"(RawData363[[#This Row],[2023 5-yr population estimate]]-RawData363[[#This Row],[2022 5-yr population estimate]])/RawData363[[#This Row],[2022 5-yr population estimate]]","v":6.0210526315789471E-2},27.1,3.9,34957]
["Jonesville town","Union County",925,1016,{"$f":"(RawData363[[#This Row],[2023 5-yr population estimate]]-RawData363[[#This Row],[2022 5-yr population estimate]])/RawData363[[#This Row],[2022 5-yr population estimate]]","v":9.8378378378378373E-2},18.899999999999999,5.5,35000]
["Judson CDP","Greenville County",1879,2201,{"$f":"(RawData363[[#This Row],[2023 5-yr population estimate]]-RawData363[[#This Row],[2022 5-yr population estimate]])/RawData363[[#This Row],[2022 5-yr population estimate]]","v":0.17136774880255454},37.299999999999997,3.7,33600]
["Kershaw town","Lancaster County",2311,2220,{"$f":"(RawData363[[#This Row],[2023 5-yr population estimate]]-RawData363[[#This Row],[2022 5-yr population estimate]])/RawData363[[#This Row],[2022 5-yr population estimate]]","v":-3.9376893119861534E-2},17,4.3,58077]
["Kiawah Island town","Charleston County",2130,2196,{"$f":"(RawData363[[#This Row],[2023 5-yr population estimate]]-RawData363[[#This Row],[2022 5-yr population estimate]])/RawData363[[#This Row],[2022 5-yr population estimate]]","v":3.0985915492957747E-2},2.7,3.4,236607]
["Kingstree town","Williamsburg County",3202,3161,{"$f":"(RawData363[[#This Row],[2023 5-yr population estimate]]-RawData363[[#This Row],[2022 5-yr population estimate]])/RawData363[[#This Row],[2022 5-yr population estimate]]","v":-1.2804497189256714E-2},34.5,6.6,28776]
["Kline town","Barnwell County",195,135,{"$f":"(RawData363[[#This Row],[2023 5-yr population estimate]]-RawData363[[#This Row],[2022 5-yr population estimate]])/RawData363[[#This Row],[2022 5-yr population estimate]]","v":-0.30769230769230771},12.6,5.6,68750]
["Ladson CDP","Dorchester County",15298,16261,{"$f":"(RawData363[[#This Row],[2023 5-yr population estimate]]-RawData363[[#This Row],[2022 5-yr population estimate]])/RawData363[[#This Row],[2022 5-yr population estimate]]","v":6.2949405151000129E-2},12.1,3.7,83031]
["Lake City city","Florence County",6080,6032,{"$f":"(RawData363[[#This Row],[2023 5-yr population estimate]]-RawData363[[#This Row],[2022 5-yr population estimate]])/RawData363[[#This Row],[2022 5-yr population estimate]]","v":-7.8947368421052634E-3},24.5,4.4000000000000004,35000]
["Lake Murray of Richland CDP","Lexington County",6914,7057,{"$f":"(RawData363[[#This Row],[2023 5-yr population estimate]]-RawData363[[#This Row],[2022 5-yr population estimate]])/RawData363[[#This Row],[2022 5-yr population estimate]]","v":2.0682672837720566E-2},0.7,3.6,118435]
["Lake Secession CDP","Anderson County",1246,1209,{"$f":"(RawData363[[#This Row],[2023 5-yr population estimate]]-RawData363[[#This Row],[2022 5-yr population estimate]])/RawData363[[#This Row],[2022 5-yr population estimate]]","v":-2.969502407704655E-2},5.6,3.8,46933]
["Lake View town","Dillon County",702,661,{"$f":"(RawData363[[#This Row],[2023 5-yr population estimate]]-RawData363[[#This Row],[2022 5-yr population estimate]])/RawData363[[#This Row],[2022 5-yr population estimate]]","v":-5.8404558404558403E-2},27.2,6,31033]
["Lake Wylie CDP","York County",14382,15177,{"$f":"(RawData363[[#This Row],[2023 5-yr population estimate]]-RawData363[[#This Row],[2022 5-yr population estimate]])/RawData363[[#This Row],[2022 5-yr population estimate]]","v":5.5277430120984565E-2},10.7,4,112113]
["Lakewood CDP","Sumter County",3135,3154,{"$f":"(RawData363[[#This Row],[2023 5-yr population estimate]]-RawData363[[#This Row],[2022 5-yr population estimate]])/RawData363[[#This Row],[2022 5-yr population estimate]]","v":6.0606060606060606E-3},10.3,5.2,49255]
["Lamar town","Darlington County",1217,1446,{"$f":"(RawData363[[#This Row],[2023 5-yr population estimate]]-RawData363[[#This Row],[2022 5-yr population estimate]])/RawData363[[#This Row],[2022 5-yr population estimate]]","v":0.18816762530813474},31.3,4.8,44000]
["Lancaster city","Lancaster County",8592,8738,{"$f":"(RawData363[[#This Row],[2023 5-yr population estimate]]-RawData363[[#This Row],[2022 5-yr population estimate]])/RawData363[[#This Row],[2022 5-yr population estimate]]","v":1.6992551210428305E-2},27.5,4.3,43234]
["Landrum city","Spartanburg County",2504,2564,{"$f":"(RawData363[[#This Row],[2023 5-yr population estimate]]-RawData363[[#This Row],[2022 5-yr population estimate]])/RawData363[[#This Row],[2022 5-yr population estimate]]","v":2.3961661341853034E-2},18.600000000000001,4.2,41161]
["Lane town","Williamsburg County",539,531,{"$f":"(RawData363[[#This Row],[2023 5-yr population estimate]]-RawData363[[#This Row],[2022 5-yr population estimate]])/RawData363[[#This Row],[2022 5-yr population estimate]]","v":-1.4842300556586271E-2},14.9,6.6,35726]
["Langley CDP","Aiken County",1776,1718,{"$f":"(RawData363[[#This Row],[2023 5-yr population estimate]]-RawData363[[#This Row],[2022 5-yr population estimate]])/RawData363[[#This Row],[2022 5-yr population estimate]]","v":-3.2657657657657657E-2},29.2,4.2,50750]
["Latta town","Dillon County",1519,1301,{"$f":"(RawData363[[#This Row],[2023 5-yr population estimate]]-RawData363[[#This Row],[2022 5-yr population estimate]])/RawData363[[#This Row],[2022 5-yr population estimate]]","v":-0.14351547070441079},27,6,45500]
["Laurel Bay CDP","Beaufort County",5513,5627,{"$f":"(RawData363[[#This Row],[2023 5-yr population estimate]]-RawData363[[#This Row],[2022 5-yr population estimate]])/RawData363[[#This Row],[2022 5-yr population estimate]]","v":2.0678396517322693E-2},17.899999999999999,3.8,52094]
["Laurens city","Laurens County",9276,9307,{"$f":"(RawData363[[#This Row],[2023 5-yr population estimate]]-RawData363[[#This Row],[2022 5-yr population estimate]])/RawData363[[#This Row],[2022 5-yr population estimate]]","v":3.3419577404053473E-3},22,4.4000000000000004,55207]
["Lesslie CDP","York County",3114,3202,{"$f":"(RawData363[[#This Row],[2023 5-yr population estimate]]-RawData363[[#This Row],[2022 5-yr population estimate]])/RawData363[[#This Row],[2022 5-yr population estimate]]","v":2.8259473346178548E-2},4,4,86500]
["Lexington town","Lexington County",23665,24132,{"$f":"(RawData363[[#This Row],[2023 5-yr population estimate]]-RawData363[[#This Row],[2022 5-yr population estimate]])/RawData363[[#This Row],[2022 5-yr population estimate]]","v":1.9733784069300656E-2},7.4,3.6,83263]
["Liberty city","Pickens County",3329,3337,{"$f":"(RawData363[[#This Row],[2023 5-yr population estimate]]-RawData363[[#This Row],[2022 5-yr population estimate]])/RawData363[[#This Row],[2022 5-yr population estimate]]","v":2.4031240612796636E-3},19.399999999999999,4,42077]
["Lincolnville town","Dorchester County",641,835,{"$f":"(RawData363[[#This Row],[2023 5-yr population estimate]]-RawData363[[#This Row],[2022 5-yr population estimate]])/RawData363[[#This Row],[2022 5-yr population estimate]]","v":0.30265210608424337},31.6,3.7,36538]
["Little Mountain town","Newberry County",456,446,{"$f":"(RawData363[[#This Row],[2023 5-yr population estimate]]-RawData363[[#This Row],[2022 5-yr population estimate]])/RawData363[[#This Row],[2022 5-yr population estimate]]","v":-2.1929824561403508E-2},13.5,4.2,90893]
["Little River CDP","Horry County",9815,10457,{"$f":"(RawData363[[#This Row],[2023 5-yr population estimate]]-RawData363[[#This Row],[2022 5-yr population estimate]])/RawData363[[#This Row],[2022 5-yr population estimate]]","v":6.541008660213958E-2},9.9,4.7,64590]
["Livingston town","Orangeburg County",149,173,{"$f":"(RawData363[[#This Row],[2023 5-yr population estimate]]-RawData363[[#This Row],[2022 5-yr population estimate]])/RawData363[[#This Row],[2022 5-yr population estimate]]","v":0.16107382550335569},8.6999999999999993,6,47188]
["Lockhart town","Chester County",459,411,{"$f":"(RawData363[[#This Row],[2023 5-yr population estimate]]-RawData363[[#This Row],[2022 5-yr population estimate]])/RawData363[[#This Row],[2022 5-yr population estimate]]","v":-0.10457516339869281},13.2,5.5,37188]
["Lodge town","Colleton County",170,150,{"$f":"(RawData363[[#This Row],[2023 5-yr population estimate]]-RawData363[[#This Row],[2022 5-yr population estimate]])/RawData363[[#This Row],[2022 5-yr population estimate]]","v":-0.11764705882352941},26.7,4.5999999999999996,34625]
["Loris city","Horry County",2513,2570,{"$f":"(RawData363[[#This Row],[2023 5-yr population estimate]]-RawData363[[#This Row],[2022 5-yr population estimate]])/RawData363[[#This Row],[2022 5-yr population estimate]]","v":2.2682053322721846E-2},25.4,4.7,36158]
["Lowndesville town","Abbeville County",184,166,{"$f":"(RawData363[[#This Row],[2023 5-yr population estimate]]-RawData363[[#This Row],[2022 5-yr population estimate]])/RawData363[[#This Row],[2022 5-yr population estimate]]","v":-9.7826086956521743E-2},25.3,4.5,52112]
["Lowrys town","Chester County",297,357,{"$f":"(RawData363[[#This Row],[2023 5-yr population estimate]]-RawData363[[#This Row],[2022 5-yr population estimate]])/RawData363[[#This Row],[2022 5-yr population estimate]]","v":0.20202020202020202},10.1,5.5,79018]
["Lugoff CDP","Kershaw County",9423,9475,{"$f":"(RawData363[[#This Row],[2023 5-yr population estimate]]-RawData363[[#This Row],[2022 5-yr population estimate]])/RawData363[[#This Row],[2022 5-yr population estimate]]","v":5.5184123952032264E-3},12.4,4.0999999999999996,61316]
["Luray town","Hampton County",176,221,{"$f":"(RawData363[[#This Row],[2023 5-yr population estimate]]-RawData363[[#This Row],[2022 5-yr population estimate]])/RawData363[[#This Row],[2022 5-yr population estimate]]","v":0.25568181818181818},29,4,52321]
["Lydia CDP","Darlington County",227,237,{"$f":"(RawData363[[#This Row],[2023 5-yr population estimate]]-RawData363[[#This Row],[2022 5-yr population estimate]])/RawData363[[#This Row],[2022 5-yr population estimate]]","v":4.405286343612335E-2},35,4.8,22275]
["Lyman town","Spartanburg County",6099,6317,{"$f":"(RawData363[[#This Row],[2023 5-yr population estimate]]-RawData363[[#This Row],[2022 5-yr population estimate]])/RawData363[[#This Row],[2022 5-yr population estimate]]","v":3.5743564518773571E-2},8.5,4.2,69688]
["Lynchburg town","Lee County",247,373,{"$f":"(RawData363[[#This Row],[2023 5-yr population estimate]]-RawData363[[#This Row],[2022 5-yr population estimate]])/RawData363[[#This Row],[2022 5-yr population estimate]]","v":0.51012145748987858},68.900000000000006,6.3,15000]
["Manning city","Clarendon County",3862,3843,{"$f":"(RawData363[[#This Row],[2023 5-yr population estimate]]-RawData363[[#This Row],[2022 5-yr population estimate]])/RawData363[[#This Row],[2022 5-yr population estimate]]","v":-4.9197307094769552E-3},24.5,5.5,27597]
["Marion city","Marion County",6402,6338,{"$f":"(RawData363[[#This Row],[2023 5-yr population estimate]]-RawData363[[#This Row],[2022 5-yr population estimate]])/RawData363[[#This Row],[2022 5-yr population estimate]]","v":-9.9968759762574192E-3},27.5,6.2,27767]
["Mauldin city","Greenville County",25267,25985,{"$f":"(RawData363[[#This Row],[2023 5-yr population estimate]]-RawData363[[#This Row],[2022 5-yr population estimate]])/RawData363[[#This Row],[2022 5-yr population estimate]]","v":2.8416511655519058E-2},8.3000000000000007,3.7,81027]
["Mayesville town","Sumter County",670,801,{"$f":"(RawData363[[#This Row],[2023 5-yr population estimate]]-RawData363[[#This Row],[2022 5-yr population estimate]])/RawData363[[#This Row],[2022 5-yr population estimate]]","v":0.19552238805970149},38.5,5.2,45179]
["Mayo CDP","Spartanburg County",1925,1963,{"$f":"(RawData363[[#This Row],[2023 5-yr population estimate]]-RawData363[[#This Row],[2022 5-yr population estimate]])/RawData363[[#This Row],[2022 5-yr population estimate]]","v":1.9740259740259742E-2},8.4,4.2,47384]
["McBee town","Chesterfield County",1046,1000,{"$f":"(RawData363[[#This Row],[2023 5-yr population estimate]]-RawData363[[#This Row],[2022 5-yr population estimate]])/RawData363[[#This Row],[2022 5-yr population estimate]]","v":-4.3977055449330782E-2},16.7,4.7,59500]
["McClellanville town","Charleston County",770,734,{"$f":"(RawData363[[#This Row],[2023 5-yr population estimate]]-RawData363[[#This Row],[2022 5-yr population estimate]])/RawData363[[#This Row],[2022 5-yr population estimate]]","v":-4.6753246753246755E-2},4.5,3.4,104236]
["McColl town","Marlboro County",2304,2453,{"$f":"(RawData363[[#This Row],[2023 5-yr population estimate]]-RawData363[[#This Row],[2022 5-yr population estimate]])/RawData363[[#This Row],[2022 5-yr population estimate]]","v":6.4670138888888895E-2},28.2,7.2,33925]
["McConnells town","York County",323,312,{"$f":"(RawData363[[#This Row],[2023 5-yr population estimate]]-RawData363[[#This Row],[2022 5-yr population estimate]])/RawData363[[#This Row],[2022 5-yr population estimate]]","v":-3.4055727554179564E-2},15.6,4,80833]
["McCormick town","McCormick County",2760,2681,{"$f":"(RawData363[[#This Row],[2023 5-yr population estimate]]-RawData363[[#This Row],[2022 5-yr population estimate]])/RawData363[[#This Row],[2022 5-yr population estimate]]","v":-2.8623188405797102E-2},25.6,5.0999999999999996,40269]
["Meggett town","Charleston County",1348,1274,{"$f":"(RawData363[[#This Row],[2023 5-yr population estimate]]-RawData363[[#This Row],[2022 5-yr population estimate]])/RawData363[[#This Row],[2022 5-yr population estimate]]","v":-5.4896142433234422E-2},8.9,3.4,96032]
["Modoc CDP","McCormick County",602,576,{"$f":"(RawData363[[#This Row],[2023 5-yr population estimate]]-RawData363[[#This Row],[2022 5-yr population estimate]])/RawData363[[#This Row],[2022 5-yr population estimate]]","v":-4.3189368770764118E-2},36.200000000000003,5.0999999999999996,95500]
["Monarch Mill CDP","Union County",1766,1828,{"$f":"(RawData363[[#This Row],[2023 5-yr population estimate]]-RawData363[[#This Row],[2022 5-yr population estimate]])/RawData363[[#This Row],[2022 5-yr population estimate]]","v":3.5107587768969425E-2},24.9,5.5,39212]
["Moncks Corner town","Berkeley County",13456,14362,{"$f":"(RawData363[[#This Row],[2023 5-yr population estimate]]-RawData363[[#This Row],[2022 5-yr population estimate]])/RawData363[[#This Row],[2022 5-yr population estimate]]","v":6.7330558858501782E-2},5.6,3.7,91516]
["Monetta town","Saluda County",184,209,{"$f":"(RawData363[[#This Row],[2023 5-yr population estimate]]-RawData363[[#This Row],[2022 5-yr population estimate]])/RawData363[[#This Row],[2022 5-yr population estimate]]","v":0.1358695652173913},14.8,3.6,55781]
["Mount Carmel CDP","McCormick County",379,338,{"$f":"(RawData363[[#This Row],[2023 5-yr population estimate]]-RawData363[[#This Row],[2022 5-yr population estimate]])/RawData363[[#This Row],[2022 5-yr population estimate]]","v":-0.10817941952506596},16.600000000000001,5.0999999999999996,41534]
["Mount Croghan town","Chesterfield County",177,138,{"$f":"(RawData363[[#This Row],[2023 5-yr population estimate]]-RawData363[[#This Row],[2022 5-yr population estimate]])/RawData363[[#This Row],[2022 5-yr population estimate]]","v":-0.22033898305084745},6.5,4.7,65833]
["Mount Pleasant town","Berkeley County",90945,92662,{"$f":"(RawData363[[#This Row],[2023 5-yr population estimate]]-RawData363[[#This Row],[2022 5-yr population estimate]])/RawData363[[#This Row],[2022 5-yr population estimate]]","v":1.8879542580680631E-2},5.8,3.7,121364]
["Mountville CDP","Laurens County",135,100,{"$f":"(RawData363[[#This Row],[2023 5-yr population estimate]]-RawData363[[#This Row],[2022 5-yr population estimate]])/RawData363[[#This Row],[2022 5-yr population estimate]]","v":-0.25925925925925924},11,4.4000000000000004,68710]
["Mulberry CDP","Sumter County",184,230,{"$f":"(RawData363[[#This Row],[2023 5-yr population estimate]]-RawData363[[#This Row],[2022 5-yr population estimate]])/RawData363[[#This Row],[2022 5-yr population estimate]]","v":0.25},17.600000000000001,5.2,39697]
["Mullins city","Marion County",4014,3965,{"$f":"(RawData363[[#This Row],[2023 5-yr population estimate]]-RawData363[[#This Row],[2022 5-yr population estimate]])/RawData363[[#This Row],[2022 5-yr population estimate]]","v":-1.2207274539113104E-2},34.700000000000003,6.2,30750]
["Murphys Estates CDP","Aiken County",1477,1187,{"$f":"(RawData363[[#This Row],[2023 5-yr population estimate]]-RawData363[[#This Row],[2022 5-yr population estimate]])/RawData363[[#This Row],[2022 5-yr population estimate]]","v":-0.1963439404197698},3.5,4.2,90357]
["Murrells Inlet CDP","Horry County",10297,10087,{"$f":"(RawData363[[#This Row],[2023 5-yr population estimate]]-RawData363[[#This Row],[2022 5-yr population estimate]])/RawData363[[#This Row],[2022 5-yr population estimate]]","v":-2.0394289598912305E-2},6.4,4.7,75438]
["Myrtle Beach city","Horry County",36064,37214,{"$f":"(RawData363[[#This Row],[2023 5-yr population estimate]]-RawData363[[#This Row],[2022 5-yr population estimate]])/RawData363[[#This Row],[2022 5-yr population estimate]]","v":3.1887755102040817E-2},16.899999999999999,4.7,53679]
["Neeses town","Orangeburg County",370,431,{"$f":"(RawData363[[#This Row],[2023 5-yr population estimate]]-RawData363[[#This Row],[2022 5-yr population estimate]])/RawData363[[#This Row],[2022 5-yr population estimate]]","v":0.16486486486486487},22.7,6,37708]
["New Ellenton town","Aiken County",2508,2604,{"$f":"(RawData363[[#This Row],[2023 5-yr population estimate]]-RawData363[[#This Row],[2022 5-yr population estimate]])/RawData363[[#This Row],[2022 5-yr population estimate]]","v":3.8277511961722487E-2},13.5,4.2,60625]
["Newberry city","Newberry County",10682,10733,{"$f":"(RawData363[[#This Row],[2023 5-yr population estimate]]-RawData363[[#This Row],[2022 5-yr population estimate]])/RawData363[[#This Row],[2022 5-yr population estimate]]","v":4.7743868189477623E-3},27,4.2,47885]
["Newport CDP","York County",4226,4142,{"$f":"(RawData363[[#This Row],[2023 5-yr population estimate]]-RawData363[[#This Row],[2022 5-yr population estimate]])/RawData363[[#This Row],[2022 5-yr population estimate]]","v":-1.9876952200662566E-2},12.9,4,107143]
["Newry CDP","Oconee County",341,393,{"$f":"(RawData363[[#This Row],[2023 5-yr population estimate]]-RawData363[[#This Row],[2022 5-yr population estimate]])/RawData363[[#This Row],[2022 5-yr population estimate]]","v":0.15249266862170088},28.2,3.9,60193]
["Nichols town","Marion County",160,195,{"$f":"(RawData363[[#This Row],[2023 5-yr population estimate]]-RawData363[[#This Row],[2022 5-yr population estimate]])/RawData363[[#This Row],[2022 5-yr population estimate]]","v":0.21875},17.399999999999999,6.2,46471]
["Ninety Six town","Greenwood County",2579,2635,{"$f":"(RawData363[[#This Row],[2023 5-yr population estimate]]-RawData363[[#This Row],[2022 5-yr population estimate]])/RawData363[[#This Row],[2022 5-yr population estimate]]","v":2.1713842574641335E-2},18.899999999999999,5.2,53438]
["Norris town","Pickens County",737,838,{"$f":"(RawData363[[#This Row],[2023 5-yr population estimate]]-RawData363[[#This Row],[2022 5-yr population estimate]])/RawData363[[#This Row],[2022 5-yr population estimate]]","v":0.13704206241519673},25.7,4,51750]
["North Augusta city","Aiken County",24425,24928,{"$f":"(RawData363[[#This Row],[2023 5-yr population estimate]]-RawData363[[#This Row],[2022 5-yr population estimate]])/RawData363[[#This Row],[2022 5-yr population estimate]]","v":2.059365404298874E-2},6.9,4.2,90132]
["North Charleston city","Dorchester County",115755,117460,{"$f":"(RawData363[[#This Row],[2023 5-yr population estimate]]-RawData363[[#This Row],[2022 5-yr population estimate]])/RawData363[[#This Row],[2022 5-yr population estimate]]","v":1.4729385339726146E-2},15.5,3.7,62789]
["North Hartsville CDP","Darlington County",3261,3217,{"$f":"(RawData363[[#This Row],[2023 5-yr population estimate]]-RawData363[[#This Row],[2022 5-yr population estimate]])/RawData363[[#This Row],[2022 5-yr population estimate]]","v":-1.3492793621588469E-2},30.8,4.8,59990]
["North Myrtle Beach city","Horry County",18850,19343,{"$f":"(RawData363[[#This Row],[2023 5-yr population estimate]]-RawData363[[#This Row],[2022 5-yr population estimate]])/RawData363[[#This Row],[2022 5-yr population estimate]]","v":2.6153846153846153E-2},6.1,4.7,72111]
["North town","Orangeburg County",916,783,{"$f":"(RawData363[[#This Row],[2023 5-yr population estimate]]-RawData363[[#This Row],[2022 5-yr population estimate]])/RawData363[[#This Row],[2022 5-yr population estimate]]","v":-0.14519650655021835},38.799999999999997,6,36250]
["Northlake CDP","Anderson County",3989,3848,{"$f":"(RawData363[[#This Row],[2023 5-yr population estimate]]-RawData363[[#This Row],[2022 5-yr population estimate]])/RawData363[[#This Row],[2022 5-yr population estimate]]","v":-3.5347204813236402E-2},10.1,3.8,79531]
["Norway town","Orangeburg County",325,279,{"$f":"(RawData363[[#This Row],[2023 5-yr population estimate]]-RawData363[[#This Row],[2022 5-yr population estimate]])/RawData363[[#This Row],[2022 5-yr population estimate]]","v":-0.14153846153846153},13.3,6,47632]
["Oak Grove CDP","Lexington County",11385,12031,{"$f":"(RawData363[[#This Row],[2023 5-yr population estimate]]-RawData363[[#This Row],[2022 5-yr population estimate]])/RawData363[[#This Row],[2022 5-yr population estimate]]","v":5.6741326306543695E-2},11.1,3.6,75506]
["Oakland CDP","Sumter County",958,901,{"$f":"(RawData363[[#This Row],[2023 5-yr population estimate]]-RawData363[[#This Row],[2022 5-yr population estimate]])/RawData363[[#This Row],[2022 5-yr population estimate]]","v":-5.9498956158663886E-2},21.5,5.2,61875]
["Olanta town","Florence County",588,703,{"$f":"(RawData363[[#This Row],[2023 5-yr population estimate]]-RawData363[[#This Row],[2022 5-yr population estimate]])/RawData363[[#This Row],[2022 5-yr population estimate]]","v":0.195578231292517},23.6,4.4000000000000004,54375]
["Olar town","Bamberg County",179,188,{"$f":"(RawData363[[#This Row],[2023 5-yr population estimate]]-RawData363[[#This Row],[2022 5-yr population estimate]])/RawData363[[#This Row],[2022 5-yr population estimate]]","v":5.027932960893855E-2},14.9,6.2,36607]
["Orangeburg city","Orangeburg County",13220,13189,{"$f":"(RawData363[[#This Row],[2023 5-yr population estimate]]-RawData363[[#This Row],[2022 5-yr population estimate]])/RawData363[[#This Row],[2022 5-yr population estimate]]","v":-2.3449319213313161E-3},31.5,6,33066]
["Oswego CDP","Sumter County",352,211,{"$f":"(RawData363[[#This Row],[2023 5-yr population estimate]]-RawData363[[#This Row],[2022 5-yr population estimate]])/RawData363[[#This Row],[2022 5-yr population estimate]]","v":-0.40056818181818182},100,5.2,55990]
["Pacolet town","Spartanburg County",1970,2164,{"$f":"(RawData363[[#This Row],[2023 5-yr population estimate]]-RawData363[[#This Row],[2022 5-yr population estimate]])/RawData363[[#This Row],[2022 5-yr population estimate]]","v":9.847715736040609E-2},15.8,4.2,46120]
["Pageland town","Chesterfield County",2726,2476,{"$f":"(RawData363[[#This Row],[2023 5-yr population estimate]]-RawData363[[#This Row],[2022 5-yr population estimate]])/RawData363[[#This Row],[2022 5-yr population estimate]]","v":-9.1709464416727809E-2},22,4.7,40236]
["Pamplico town","Florence County",1073,952,{"$f":"(RawData363[[#This Row],[2023 5-yr population estimate]]-RawData363[[#This Row],[2022 5-yr population estimate]])/RawData363[[#This Row],[2022 5-yr population estimate]]","v":-0.11276794035414725},40.9,4.4000000000000004,24646]
["Parker CDP","Pickens County",12466,12564,{"$f":"(RawData363[[#This Row],[2023 5-yr population estimate]]-RawData363[[#This Row],[2022 5-yr population estimate]])/RawData363[[#This Row],[2022 5-yr population estimate]]","v":7.8613829616557031E-3},29.2,4,38607]
["Parksville town","McCormick County",104,90,{"$f":"(RawData363[[#This Row],[2023 5-yr population estimate]]-RawData363[[#This Row],[2022 5-yr population estimate]])/RawData363[[#This Row],[2022 5-yr population estimate]]","v":-0.13461538461538461},11.1,5.0999999999999996,41250]
["Patrick town","Chesterfield County",500,341,{"$f":"(RawData363[[#This Row],[2023 5-yr population estimate]]-RawData363[[#This Row],[2022 5-yr population estimate]])/RawData363[[#This Row],[2022 5-yr population estimate]]","v":-0.318},33.700000000000003,4.7,27153]
["Pawleys Island town","Georgetown County",104,116,{"$f":"(RawData363[[#This Row],[2023 5-yr population estimate]]-RawData363[[#This Row],[2022 5-yr population estimate]])/RawData363[[#This Row],[2022 5-yr population estimate]]","v":0.11538461538461539},5.2,4.5999999999999996,118750]
["Paxville town","Clarendon County",342,386,{"$f":"(RawData363[[#This Row],[2023 5-yr population estimate]]-RawData363[[#This Row],[2022 5-yr population estimate]])/RawData363[[#This Row],[2022 5-yr population estimate]]","v":0.12865497076023391},15,5.5,56071]
["Peak town","Newberry County",79,78,{"$f":"(RawData363[[#This Row],[2023 5-yr population estimate]]-RawData363[[#This Row],[2022 5-yr population estimate]])/RawData363[[#This Row],[2022 5-yr population estimate]]","v":-1.2658227848101266E-2},5.0999999999999996,4.2,59670]
["Pelion town","Lexington County",1056,1147,{"$f":"(RawData363[[#This Row],[2023 5-yr population estimate]]-RawData363[[#This Row],[2022 5-yr population estimate]])/RawData363[[#This Row],[2022 5-yr population estimate]]","v":8.6174242424242431E-2},15,3.6,61250]
["Pelzer town","Anderson County",1480,1570,{"$f":"(RawData363[[#This Row],[2023 5-yr population estimate]]-RawData363[[#This Row],[2022 5-yr population estimate]])/RawData363[[#This Row],[2022 5-yr population estimate]]","v":6.0810810810810814E-2},25.9,3.8,54886]
["Pendleton town","Anderson County",3498,3542,{"$f":"(RawData363[[#This Row],[2023 5-yr population estimate]]-RawData363[[#This Row],[2022 5-yr population estimate]])/RawData363[[#This Row],[2022 5-yr population estimate]]","v":1.2578616352201259E-2},23.5,3.8,60517]
["Perry town","Aiken County",288,333,{"$f":"(RawData363[[#This Row],[2023 5-yr population estimate]]-RawData363[[#This Row],[2022 5-yr population estimate]])/RawData363[[#This Row],[2022 5-yr population estimate]]","v":0.15625},29.5,4.2,35179]
["Pickens city","Pickens County",3374,3386,{"$f":"(RawData363[[#This Row],[2023 5-yr population estimate]]-RawData363[[#This Row],[2022 5-yr population estimate]])/RawData363[[#This Row],[2022 5-yr population estimate]]","v":3.5566093657379964E-3},16.7,4,58534]
["Piedmont CDP","Anderson County",5510,5786,{"$f":"(RawData363[[#This Row],[2023 5-yr population estimate]]-RawData363[[#This Row],[2022 5-yr population estimate]])/RawData363[[#This Row],[2022 5-yr population estimate]]","v":5.0090744101633396E-2},27.7,3.8,51896]
["Pine Ridge town","Lexington County",2687,2709,{"$f":"(RawData363[[#This Row],[2023 5-yr population estimate]]-RawData363[[#This Row],[2022 5-yr population estimate]])/RawData363[[#This Row],[2022 5-yr population estimate]]","v":8.1875697804242656E-3},16.600000000000001,3.6,74861]
["Pinewood town","Sumter County",790,559,{"$f":"(RawData363[[#This Row],[2023 5-yr population estimate]]-RawData363[[#This Row],[2022 5-yr population estimate]])/RawData363[[#This Row],[2022 5-yr population estimate]]","v":-0.29240506329113924},34.799999999999997,5.2,27500]
["Pinopolis CDP","Berkeley County",933,950,{"$f":"(RawData363[[#This Row],[2023 5-yr population estimate]]-RawData363[[#This Row],[2022 5-yr population estimate]])/RawData363[[#This Row],[2022 5-yr population estimate]]","v":1.8220793140407289E-2},1.8,3.7,113750]
["Plum Branch town","McCormick County",76,95,{"$f":"(RawData363[[#This Row],[2023 5-yr population estimate]]-RawData363[[#This Row],[2022 5-yr population estimate]])/RawData363[[#This Row],[2022 5-yr population estimate]]","v":0.25},23.2,5.0999999999999996,145833]
["Pomaria town","Newberry County",91,103,{"$f":"(RawData363[[#This Row],[2023 5-yr population estimate]]-RawData363[[#This Row],[2022 5-yr population estimate]])/RawData363[[#This Row],[2022 5-yr population estimate]]","v":0.13186813186813187},16,4.2,71250]
["Port Royal town","Beaufort County",14573,15047,{"$f":"(RawData363[[#This Row],[2023 5-yr population estimate]]-RawData363[[#This Row],[2022 5-yr population estimate]])/RawData363[[#This Row],[2022 5-yr population estimate]]","v":3.2525904069169012E-2},10.6,3.8,70330]
["Powdersville CDP","Anderson County",10678,11321,{"$f":"(RawData363[[#This Row],[2023 5-yr population estimate]]-RawData363[[#This Row],[2022 5-yr population estimate]])/RawData363[[#This Row],[2022 5-yr population estimate]]","v":6.0217269151526504E-2},8.5,3.8,88125]
["Princeton CDP","Laurens County",78,88,{"$f":"(RawData363[[#This Row],[2023 5-yr population estimate]]-RawData363[[#This Row],[2022 5-yr population estimate]])/RawData363[[#This Row],[2022 5-yr population estimate]]","v":0.12820512820512819},17.600000000000001,4.4000000000000004,143684]
["Privateer CDP","Sumter County",2191,2294,{"$f":"(RawData363[[#This Row],[2023 5-yr population estimate]]-RawData363[[#This Row],[2022 5-yr population estimate]])/RawData363[[#This Row],[2022 5-yr population estimate]]","v":4.701049748973072E-2},25.9,5.2,49861]
["Promised Land CDP","Greenwood County",334,127,{"$f":"(RawData363[[#This Row],[2023 5-yr population estimate]]-RawData363[[#This Row],[2022 5-yr population estimate]])/RawData363[[#This Row],[2022 5-yr population estimate]]","v":-0.61976047904191611},39.4,5.2,50635]
["Prosperity town","Newberry County",1139,1198,{"$f":"(RawData363[[#This Row],[2023 5-yr population estimate]]-RawData363[[#This Row],[2022 5-yr population estimate]])/RawData363[[#This Row],[2022 5-yr population estimate]]","v":5.1799824407374892E-2},16,4.2,58276]
["Quinby town","Florence County",897,865,{"$f":"(RawData363[[#This Row],[2023 5-yr population estimate]]-RawData363[[#This Row],[2022 5-yr population estimate]])/RawData363[[#This Row],[2022 5-yr population estimate]]","v":-3.5674470457079152E-2},14.5,4.4000000000000004,65208]
["Ravenel town","Charleston County",2572,2594,{"$f":"(RawData363[[#This Row],[2023 5-yr population estimate]]-RawData363[[#This Row],[2022 5-yr population estimate]])/RawData363[[#This Row],[2022 5-yr population estimate]]","v":8.553654743390357E-3},18.8,3.4,72365]
["Red Bank CDP","Lexington County",10544,10950,{"$f":"(RawData363[[#This Row],[2023 5-yr population estimate]]-RawData363[[#This Row],[2022 5-yr population estimate]])/RawData363[[#This Row],[2022 5-yr population estimate]]","v":3.8505311077389984E-2},12.6,3.6,60348]
["Red Hill CDP","Horry County",15585,16480,{"$f":"(RawData363[[#This Row],[2023 5-yr population estimate]]-RawData363[[#This Row],[2022 5-yr population estimate]])/RawData363[[#This Row],[2022 5-yr population estimate]]","v":5.7427013153673406E-2},22.6,4.7,62132]
["Reevesville town","Dorchester County",272,295,{"$f":"(RawData363[[#This Row],[2023 5-yr population estimate]]-RawData363[[#This Row],[2022 5-yr population estimate]])/RawData363[[#This Row],[2022 5-yr population estimate]]","v":8.455882352941177E-2},8.1,3.7,72500]
["Reidville town","Spartanburg County",1734,1955,{"$f":"(RawData363[[#This Row],[2023 5-yr population estimate]]-RawData363[[#This Row],[2022 5-yr population estimate]])/RawData363[[#This Row],[2022 5-yr population estimate]]","v":0.12745098039215685},2.4,4.2,117692]
["Rembert CDP","Sumter County",255,199,{"$f":"(RawData363[[#This Row],[2023 5-yr population estimate]]-RawData363[[#This Row],[2022 5-yr population estimate]])/RawData363[[#This Row],[2022 5-yr population estimate]]","v":-0.2196078431372549},16.399999999999999,5.2,50950]
["Richburg town","Chester County",354,404,{"$f":"(RawData363[[#This Row],[2023 5-yr population estimate]]-RawData363[[#This Row],[2022 5-yr population estimate]])/RawData363[[#This Row],[2022 5-yr population estimate]]","v":0.14124293785310735},35.9,5.5,51216]
["Ridge Spring town","Saluda County",720,848,{"$f":"(RawData363[[#This Row],[2023 5-yr population estimate]]-RawData363[[#This Row],[2022 5-yr population estimate]])/RawData363[[#This Row],[2022 5-yr population estimate]]","v":0.17777777777777778},19.5,3.6,38854]
["Ridgeland town","Beaufort County",3737,3756,{"$f":"(RawData363[[#This Row],[2023 5-yr population estimate]]-RawData363[[#This Row],[2022 5-yr population estimate]])/RawData363[[#This Row],[2022 5-yr population estimate]]","v":5.0842922130050839E-3},20.8,3.8,71023]
["Ridgeville town","Dorchester County",1548,1591,{"$f":"(RawData363[[#This Row],[2023 5-yr population estimate]]-RawData363[[#This Row],[2022 5-yr population estimate]])/RawData363[[#This Row],[2022 5-yr population estimate]]","v":2.7777777777777776E-2},9.8000000000000007,3.7,56134]
["Ridgeway town","Fairfield County",251,240,{"$f":"(RawData363[[#This Row],[2023 5-yr population estimate]]-RawData363[[#This Row],[2022 5-yr population estimate]])/RawData363[[#This Row],[2022 5-yr population estimate]]","v":-4.3824701195219126E-2},38.799999999999997,5,47143]
["Riverview CDP","York County",2010,2215,{"$f":"(RawData363[[#This Row],[2023 5-yr population estimate]]-RawData363[[#This Row],[2022 5-yr population estimate]])/RawData363[[#This Row],[2022 5-yr population estimate]]","v":0.10199004975124377},4.5999999999999996,4,131158]
["Rock Hill city","York County",74170,74769,{"$f":"(RawData363[[#This Row],[2023 5-yr population estimate]]-RawData363[[#This Row],[2022 5-yr population estimate]])/RawData363[[#This Row],[2022 5-yr population estimate]]","v":8.0760415262235413E-3},13.3,4,64770]
["Rockville town","Charleston County",113,125,{"$f":"(RawData363[[#This Row],[2023 5-yr population estimate]]-RawData363[[#This Row],[2022 5-yr population estimate]])/RawData363[[#This Row],[2022 5-yr population estimate]]","v":0.10619469026548672},2.4,3.4,76563]
["Roebuck CDP","Spartanburg County",3837,3468,{"$f":"(RawData363[[#This Row],[2023 5-yr population estimate]]-RawData363[[#This Row],[2022 5-yr population estimate]])/RawData363[[#This Row],[2022 5-yr population estimate]]","v":-9.616888193901485E-2},8.6999999999999993,4.2,51111]
["Rowesville town","Orangeburg County",388,406,{"$f":"(RawData363[[#This Row],[2023 5-yr population estimate]]-RawData363[[#This Row],[2022 5-yr population estimate]])/RawData363[[#This Row],[2022 5-yr population estimate]]","v":4.6391752577319589E-2},18.7,6,28125]
["Ruby town","Chesterfield County",359,244,{"$f":"(RawData363[[#This Row],[2023 5-yr population estimate]]-RawData363[[#This Row],[2022 5-yr population estimate]])/RawData363[[#This Row],[2022 5-yr population estimate]]","v":-0.3203342618384401},15.6,4.7,49167]
["Russellville CDP","Berkeley County",280,273,{"$f":"(RawData363[[#This Row],[2023 5-yr population estimate]]-RawData363[[#This Row],[2022 5-yr population estimate]])/RawData363[[#This Row],[2022 5-yr population estimate]]","v":-2.5000000000000001E-2},39.200000000000003,3.7,82327]
["Salem town","Oconee County",145,208,{"$f":"(RawData363[[#This Row],[2023 5-yr population estimate]]-RawData363[[#This Row],[2022 5-yr population estimate]])/RawData363[[#This Row],[2022 5-yr population estimate]]","v":0.43448275862068964},10.4,3.9,63750]
["Salley town","Aiken County",297,335,{"$f":"(RawData363[[#This Row],[2023 5-yr population estimate]]-RawData363[[#This Row],[2022 5-yr population estimate]])/RawData363[[#This Row],[2022 5-yr population estimate]]","v":0.12794612794612795},43.6,4.2,34189]
["Saluda town","Saluda County",3124,3095,{"$f":"(RawData363[[#This Row],[2023 5-yr population estimate]]-RawData363[[#This Row],[2022 5-yr population estimate]])/RawData363[[#This Row],[2022 5-yr population estimate]]","v":-9.2829705505761851E-3},41.4,3.6,40567]
["Sangaree CDP","Berkeley County",8680,8517,{"$f":"(RawData363[[#This Row],[2023 5-yr population estimate]]-RawData363[[#This Row],[2022 5-yr population estimate]])/RawData363[[#This Row],[2022 5-yr population estimate]]","v":-1.8778801843317972E-2},14.5,3.7,77939]
["Sans Souci CDP","Greenville County",8042,8199,{"$f":"(RawData363[[#This Row],[2023 5-yr population estimate]]-RawData363[[#This Row],[2022 5-yr population estimate]])/RawData363[[#This Row],[2022 5-yr population estimate]]","v":1.9522506839094754E-2},12.9,3.7,46276]
["Santee town","Orangeburg County",1189,1179,{"$f":"(RawData363[[#This Row],[2023 5-yr population estimate]]-RawData363[[#This Row],[2022 5-yr population estimate]])/RawData363[[#This Row],[2022 5-yr population estimate]]","v":-8.4104289318755257E-3},37.799999999999997,6,36856]
["Saxon CDP","Spartanburg County",4171,4139,{"$f":"(RawData363[[#This Row],[2023 5-yr population estimate]]-RawData363[[#This Row],[2022 5-yr population estimate]])/RawData363[[#This Row],[2022 5-yr population estimate]]","v":-7.6720210980580194E-3},44.3,4.2,28394]
["Scotia town","Hampton County",111,126,{"$f":"(RawData363[[#This Row],[2023 5-yr population estimate]]-RawData363[[#This Row],[2022 5-yr population estimate]])/RawData363[[#This Row],[2022 5-yr population estimate]]","v":0.13513513513513514},15.9,4,43059]
["Scranton town","Florence County",897,820,{"$f":"(RawData363[[#This Row],[2023 5-yr population estimate]]-RawData363[[#This Row],[2022 5-yr population estimate]])/RawData363[[#This Row],[2022 5-yr population estimate]]","v":-8.5841694537346705E-2},30.5,4.4000000000000004,26250]
["Seabrook Island town","Charleston County",2062,2107,{"$f":"(RawData363[[#This Row],[2023 5-yr population estimate]]-RawData363[[#This Row],[2022 5-yr population estimate]])/RawData363[[#This Row],[2022 5-yr population estimate]]","v":2.1823472356935016E-2},4.5999999999999996,3.4,124519]
["Sellers town","Marion County",133,188,{"$f":"(RawData363[[#This Row],[2023 5-yr population estimate]]-RawData363[[#This Row],[2022 5-yr population estimate]])/RawData363[[#This Row],[2022 5-yr population estimate]]","v":0.41353383458646614},60.6,6.2,23250]
["Seneca city","Oconee County",8834,8910,{"$f":"(RawData363[[#This Row],[2023 5-yr population estimate]]-RawData363[[#This Row],[2022 5-yr population estimate]])/RawData363[[#This Row],[2022 5-yr population estimate]]","v":8.603124292506226E-3},18.8,3.9,52207]
["Seven Oaks CDP","Lexington County",15826,15990,{"$f":"(RawData363[[#This Row],[2023 5-yr population estimate]]-RawData363[[#This Row],[2022 5-yr population estimate]])/RawData363[[#This Row],[2022 5-yr population estimate]]","v":1.0362694300518135E-2},9.6999999999999993,3.6,64003]
["Sharon town","York County",411,515,{"$f":"(RawData363[[#This Row],[2023 5-yr population estimate]]-RawData363[[#This Row],[2022 5-yr population estimate]])/RawData363[[#This Row],[2022 5-yr population estimate]]","v":0.25304136253041365},18.600000000000001,4,44125]
["Shell Point CDP","Beaufort County",2026,2005,{"$f":"(RawData363[[#This Row],[2023 5-yr population estimate]]-RawData363[[#This Row],[2022 5-yr population estimate]])/RawData363[[#This Row],[2022 5-yr population estimate]]","v":-1.0365251727541954E-2},4.4000000000000004,3.8,65840]
["Shiloh CDP","Florence County",195,165,{"$f":"(RawData363[[#This Row],[2023 5-yr population estimate]]-RawData363[[#This Row],[2022 5-yr population estimate]])/RawData363[[#This Row],[2022 5-yr population estimate]]","v":-0.15384615384615385},18.3,4.4000000000000004,82411]
["Silverstreet town","Newberry County",147,160,{"$f":"(RawData363[[#This Row],[2023 5-yr population estimate]]-RawData363[[#This Row],[2022 5-yr population estimate]])/RawData363[[#This Row],[2022 5-yr population estimate]]","v":8.8435374149659865E-2},10.8,4.2,72273]
["Simpsonville city","Greenville County",24133,25125,{"$f":"(RawData363[[#This Row],[2023 5-yr population estimate]]-RawData363[[#This Row],[2022 5-yr population estimate]])/RawData363[[#This Row],[2022 5-yr population estimate]]","v":4.1105540131769779E-2},6.1,3.7,79233]
["Six Mile town","Pickens County",1086,984,{"$f":"(RawData363[[#This Row],[2023 5-yr population estimate]]-RawData363[[#This Row],[2022 5-yr population estimate]])/RawData363[[#This Row],[2022 5-yr population estimate]]","v":-9.3922651933701654E-2},6.1,4,110000]
["Slater-Marietta CDP","Greenville County",2199,1934,{"$f":"(RawData363[[#This Row],[2023 5-yr population estimate]]-RawData363[[#This Row],[2022 5-yr population estimate]])/RawData363[[#This Row],[2022 5-yr population estimate]]","v":-0.12050932241928149},22.1,3.7,42857]
["Smoaks town","Colleton County",125,148,{"$f":"(RawData363[[#This Row],[2023 5-yr population estimate]]-RawData363[[#This Row],[2022 5-yr population estimate]])/RawData363[[#This Row],[2022 5-yr population estimate]]","v":0.184},2,4.5999999999999996,63125]
["Smyrna town","Cherokee County",28,50,{"$f":"(RawData363[[#This Row],[2023 5-yr population estimate]]-RawData363[[#This Row],[2022 5-yr population estimate]])/RawData363[[#This Row],[2022 5-yr population estimate]]","v":0.7857142857142857},4,5.7,49047]
["Snelling town","Barnwell County",262,283,{"$f":"(RawData363[[#This Row],[2023 5-yr population estimate]]-RawData363[[#This Row],[2022 5-yr population estimate]])/RawData363[[#This Row],[2022 5-yr population estimate]]","v":8.0152671755725186E-2},15.8,5.6,41042]
["Socastee CDP","Horry County",24464,24629,{"$f":"(RawData363[[#This Row],[2023 5-yr population estimate]]-RawData363[[#This Row],[2022 5-yr population estimate]])/RawData363[[#This Row],[2022 5-yr population estimate]]","v":6.7446043165467623E-3},13.1,4.7,59826]
["Society Hill town","Darlington County",415,460,{"$f":"(RawData363[[#This Row],[2023 5-yr population estimate]]-RawData363[[#This Row],[2022 5-yr population estimate]])/RawData363[[#This Row],[2022 5-yr population estimate]]","v":0.10843373493975904},16.3,4.8,32115]
["South Congaree town","Lexington County",2256,1918,{"$f":"(RawData363[[#This Row],[2023 5-yr population estimate]]-RawData363[[#This Row],[2022 5-yr population estimate]])/RawData363[[#This Row],[2022 5-yr population estimate]]","v":-0.149822695035461},13.4,3.6,58726]
["South Sumter CDP","Sumter County",1564,1808,{"$f":"(RawData363[[#This Row],[2023 5-yr population estimate]]-RawData363[[#This Row],[2022 5-yr population estimate]])/RawData363[[#This Row],[2022 5-yr population estimate]]","v":0.15601023017902813},28.6,5.2,42708]
["Southern Shops CDP","Spartanburg County",3856,3985,{"$f":"(RawData363[[#This Row],[2023 5-yr population estimate]]-RawData363[[#This Row],[2022 5-yr population estimate]])/RawData363[[#This Row],[2022 5-yr population estimate]]","v":3.3454356846473028E-2},44.2,4.2,35016]
["Spartanburg city","Spartanburg County",38301,38578,{"$f":"(RawData363[[#This Row],[2023 5-yr population estimate]]-RawData363[[#This Row],[2022 5-yr population estimate]])/RawData363[[#This Row],[2022 5-yr population estimate]]","v":7.2321871491605964E-3},24.1,4.2,51193]
["Springdale CDP","Lancaster County",2580,2422,{"$f":"(RawData363[[#This Row],[2023 5-yr population estimate]]-RawData363[[#This Row],[2022 5-yr population estimate]])/RawData363[[#This Row],[2022 5-yr population estimate]]","v":-6.1240310077519379E-2},17.3,4.3,42708]
["Springdale town","Lexington County",2711,2727,{"$f":"(RawData363[[#This Row],[2023 5-yr population estimate]]-RawData363[[#This Row],[2022 5-yr population estimate]])/RawData363[[#This Row],[2022 5-yr population estimate]]","v":5.9018812246403544E-3},10.4,3.6,70852]
["Springfield town","Orangeburg County",482,434,{"$f":"(RawData363[[#This Row],[2023 5-yr population estimate]]-RawData363[[#This Row],[2022 5-yr population estimate]])/RawData363[[#This Row],[2022 5-yr population estimate]]","v":-9.9585062240663894E-2},22.6,6,44583]
["St. Andrews CDP","Lexington County",21909,20953,{"$f":"(RawData363[[#This Row],[2023 5-yr population estimate]]-RawData363[[#This Row],[2022 5-yr population estimate]])/RawData363[[#This Row],[2022 5-yr population estimate]]","v":-4.3635035830024191E-2},23.5,3.6,45321]
["St. George town","Dorchester County",1901,1935,{"$f":"(RawData363[[#This Row],[2023 5-yr population estimate]]-RawData363[[#This Row],[2022 5-yr population estimate]])/RawData363[[#This Row],[2022 5-yr population estimate]]","v":1.7885323513940031E-2},27.5,3.7,31950]
["St. Matthews town","Calhoun County",1932,1626,{"$f":"(RawData363[[#This Row],[2023 5-yr population estimate]]-RawData363[[#This Row],[2022 5-yr population estimate]])/RawData363[[#This Row],[2022 5-yr population estimate]]","v":-0.15838509316770186},26,4.5999999999999996,55351]
["St. Stephen town","Berkeley County",1386,1460,{"$f":"(RawData363[[#This Row],[2023 5-yr population estimate]]-RawData363[[#This Row],[2022 5-yr population estimate]])/RawData363[[#This Row],[2022 5-yr population estimate]]","v":5.3391053391053392E-2},27.5,3.7,59688]
["Starr town","Anderson County",194,231,{"$f":"(RawData363[[#This Row],[2023 5-yr population estimate]]-RawData363[[#This Row],[2022 5-yr population estimate]])/RawData363[[#This Row],[2022 5-yr population estimate]]","v":0.19072164948453607},16.5,3.8,57813]
["Startex CDP","Spartanburg County",553,417,{"$f":"(RawData363[[#This Row],[2023 5-yr population estimate]]-RawData363[[#This Row],[2022 5-yr population estimate]])/RawData363[[#This Row],[2022 5-yr population estimate]]","v":-0.24593128390596744},32.4,4.2,64195]
["Stateburg CDP","Sumter County",1739,1859,{"$f":"(RawData363[[#This Row],[2023 5-yr population estimate]]-RawData363[[#This Row],[2022 5-yr population estimate]])/RawData363[[#This Row],[2022 5-yr population estimate]]","v":6.9005175388154108E-2},4.9000000000000004,5.2,71781]
["Stuckey town","Williamsburg County",243,234,{"$f":"(RawData363[[#This Row],[2023 5-yr population estimate]]-RawData363[[#This Row],[2022 5-yr population estimate]])/RawData363[[#This Row],[2022 5-yr population estimate]]","v":-3.7037037037037035E-2},13.2,6.6,31786]
["Sullivan's Island town","Charleston County",2317,2127,{"$f":"(RawData363[[#This Row],[2023 5-yr population estimate]]-RawData363[[#This Row],[2022 5-yr population estimate]])/RawData363[[#This Row],[2022 5-yr population estimate]]","v":-8.2002589555459651E-2},8.3000000000000007,3.4,179614]
["Summerton town","Clarendon County",714,709,{"$f":"(RawData363[[#This Row],[2023 5-yr population estimate]]-RawData363[[#This Row],[2022 5-yr population estimate]])/RawData363[[#This Row],[2022 5-yr population estimate]]","v":-7.0028011204481795E-3},29.8,5.5,35893]
["Summerville town","Dorchester County",50839,51262,{"$f":"(RawData363[[#This Row],[2023 5-yr population estimate]]-RawData363[[#This Row],[2022 5-yr population estimate]])/RawData363[[#This Row],[2022 5-yr population estimate]]","v":8.3203839571982137E-3},10.3,3.7,78621]
["Summit town","Lexington County",539,596,{"$f":"(RawData363[[#This Row],[2023 5-yr population estimate]]-RawData363[[#This Row],[2022 5-yr population estimate]])/RawData363[[#This Row],[2022 5-yr population estimate]]","v":0.10575139146567718},6.7,3.6,76250]
["Sumter city","Sumter County",43046,43065,{"$f":"(RawData363[[#This Row],[2023 5-yr population estimate]]-RawData363[[#This Row],[2022 5-yr population estimate]])/RawData363[[#This Row],[2022 5-yr population estimate]]","v":4.4138828230265296E-4},15.8,5.2,53071]
["Surfside Beach town","Horry County",4179,4217,{"$f":"(RawData363[[#This Row],[2023 5-yr population estimate]]-RawData363[[#This Row],[2022 5-yr population estimate]])/RawData363[[#This Row],[2022 5-yr population estimate]]","v":9.0930844699688915E-3},9.6999999999999993,4.7,74202]
["Swansea town","Lexington County",739,700,{"$f":"(RawData363[[#This Row],[2023 5-yr population estimate]]-RawData363[[#This Row],[2022 5-yr population estimate]])/RawData363[[#This Row],[2022 5-yr population estimate]]","v":-5.2774018944519621E-2},26.7,3.6,49271]
["Sycamore town","Allendale County",94,128,{"$f":"(RawData363[[#This Row],[2023 5-yr population estimate]]-RawData363[[#This Row],[2022 5-yr population estimate]])/RawData363[[#This Row],[2022 5-yr population estimate]]","v":0.36170212765957449},15.6,6.3,31603]
["Tatum town","Marlboro County",72,97,{"$f":"(RawData363[[#This Row],[2023 5-yr population estimate]]-RawData363[[#This Row],[2022 5-yr population estimate]])/RawData363[[#This Row],[2022 5-yr population estimate]]","v":0.34722222222222221},2.1,7.2,34583]
["Taylors CDP","Greenville County",23005,23686,{"$f":"(RawData363[[#This Row],[2023 5-yr population estimate]]-RawData363[[#This Row],[2022 5-yr population estimate]])/RawData363[[#This Row],[2022 5-yr population estimate]]","v":2.9602260378178657E-2},10.1,3.7,71747]
["Tega Cay city","York County",12816,13267,{"$f":"(RawData363[[#This Row],[2023 5-yr population estimate]]-RawData363[[#This Row],[2022 5-yr population estimate]])/RawData363[[#This Row],[2022 5-yr population estimate]]","v":3.5190387016229716E-2},0.6,4,141037]
["Tigerville CDP","Greenville County",2122,1955,{"$f":"(RawData363[[#This Row],[2023 5-yr population estimate]]-RawData363[[#This Row],[2022 5-yr population estimate]])/RawData363[[#This Row],[2022 5-yr population estimate]]","v":-7.8699340245051833E-2},17.600000000000001,3.7,74624]
["Timmonsville town","Florence County",2119,2153,{"$f":"(RawData363[[#This Row],[2023 5-yr population estimate]]-RawData363[[#This Row],[2022 5-yr population estimate]])/RawData363[[#This Row],[2022 5-yr population estimate]]","v":1.6045304388862671E-2},36.200000000000003,4.4000000000000004,32736]
["Travelers Rest city","Greenville County",7929,8137,{"$f":"(RawData363[[#This Row],[2023 5-yr population estimate]]-RawData363[[#This Row],[2022 5-yr population estimate]])/RawData363[[#This Row],[2022 5-yr population estimate]]","v":2.6232816244166981E-2},22.5,3.7,49655]
["Trenton town","Edgefield County",309,320,{"$f":"(RawData363[[#This Row],[2023 5-yr population estimate]]-RawData363[[#This Row],[2022 5-yr population estimate]])/RawData363[[#This Row],[2022 5-yr population estimate]]","v":3.5598705501618123E-2},14.1,3.9,52986]
["Troy town","Greenwood County",165,164,{"$f":"(RawData363[[#This Row],[2023 5-yr population estimate]]-RawData363[[#This Row],[2022 5-yr population estimate]])/RawData363[[#This Row],[2022 5-yr population estimate]]","v":-6.0606060606060606E-3},8.6,5.2,45833]
["Turbeville town","Clarendon County",710,703,{"$f":"(RawData363[[#This Row],[2023 5-yr population estimate]]-RawData363[[#This Row],[2022 5-yr population estimate]])/RawData363[[#This Row],[2022 5-yr population estimate]]","v":-9.8591549295774655E-3},23.5,5.5,41667]
["Ulmer town","Allendale County",92,118,{"$f":"(RawData363[[#This Row],[2023 5-yr population estimate]]-RawData363[[#This Row],[2022 5-yr population estimate]])/RawData363[[#This Row],[2022 5-yr population estimate]]","v":0.28260869565217389},4.2,6.3,95250]
["Union city","Union County",8099,8047,{"$f":"(RawData363[[#This Row],[2023 5-yr population estimate]]-RawData363[[#This Row],[2022 5-yr population estimate]])/RawData363[[#This Row],[2022 5-yr population estimate]]","v":-6.420545746388443E-3},26.4,5.5,34112]
["Utica CDP","Oconee County",1654,1529,{"$f":"(RawData363[[#This Row],[2023 5-yr population estimate]]-RawData363[[#This Row],[2022 5-yr population estimate]])/RawData363[[#This Row],[2022 5-yr population estimate]]","v":-7.5574365175332531E-2},17.2,3.9,60193]
["Valley Falls CDP","Spartanburg County",7104,7249,{"$f":"(RawData363[[#This Row],[2023 5-yr population estimate]]-RawData363[[#This Row],[2022 5-yr population estimate]])/RawData363[[#This Row],[2022 5-yr population estimate]]","v":2.0411036036036036E-2},22.4,4.2,55671]
["Van Wyck town","Lancaster County",873,970,{"$f":"(RawData363[[#This Row],[2023 5-yr population estimate]]-RawData363[[#This Row],[2022 5-yr population estimate]])/RawData363[[#This Row],[2022 5-yr population estimate]]","v":0.1111111111111111},5.2,4.3,74751]
["Vance town","Orangeburg County",92,206,{"$f":"(RawData363[[#This Row],[2023 5-yr population estimate]]-RawData363[[#This Row],[2022 5-yr population estimate]])/RawData363[[#This Row],[2022 5-yr population estimate]]","v":1.2391304347826086},18,6,46250]
["Varnville town","Hampton County",2173,2433,{"$f":"(RawData363[[#This Row],[2023 5-yr population estimate]]-RawData363[[#This Row],[2022 5-yr population estimate]])/RawData363[[#This Row],[2022 5-yr population estimate]]","v":0.11965025310630464},17.3,4,52800]
["Wade Hampton CDP","Greenville County",21029,20703,{"$f":"(RawData363[[#This Row],[2023 5-yr population estimate]]-RawData363[[#This Row],[2022 5-yr population estimate]])/RawData363[[#This Row],[2022 5-yr population estimate]]","v":-1.5502401445622711E-2},9,3.7,75522]
["Wagener town","Aiken County",1030,1170,{"$f":"(RawData363[[#This Row],[2023 5-yr population estimate]]-RawData363[[#This Row],[2022 5-yr population estimate]])/RawData363[[#This Row],[2022 5-yr population estimate]]","v":0.13592233009708737},22,4.2,45753]
["Walhalla city","Oconee County",4102,4121,{"$f":"(RawData363[[#This Row],[2023 5-yr population estimate]]-RawData363[[#This Row],[2022 5-yr population estimate]])/RawData363[[#This Row],[2022 5-yr population estimate]]","v":4.6318868844466114E-3},43.1,3.9,42696]
["Wallace CDP","Marlboro County",662,669,{"$f":"(RawData363[[#This Row],[2023 5-yr population estimate]]-RawData363[[#This Row],[2022 5-yr population estimate]])/RawData363[[#This Row],[2022 5-yr population estimate]]","v":1.0574018126888218E-2},16.100000000000001,7.2,36293]
["Walterboro city","Colleton County",5515,5490,{"$f":"(RawData363[[#This Row],[2023 5-yr population estimate]]-RawData363[[#This Row],[2022 5-yr population estimate]])/RawData363[[#This Row],[2022 5-yr population estimate]]","v":-4.5330915684496827E-3},30.7,4.5999999999999996,48366]
["Ward town","Saluda County",252,284,{"$f":"(RawData363[[#This Row],[2023 5-yr population estimate]]-RawData363[[#This Row],[2022 5-yr population estimate]])/RawData363[[#This Row],[2022 5-yr population estimate]]","v":0.12698412698412698},35.200000000000003,3.6,55625]
["Ware Place CDP","Greenville County",96,101,{"$f":"(RawData363[[#This Row],[2023 5-yr population estimate]]-RawData363[[#This Row],[2022 5-yr population estimate]])/RawData363[[#This Row],[2022 5-yr population estimate]]","v":5.2083333333333336E-2},7.9,3.7,93611]
["Ware Shoals town","Greenwood County",1934,2207,{"$f":"(RawData363[[#This Row],[2023 5-yr population estimate]]-RawData363[[#This Row],[2022 5-yr population estimate]])/RawData363[[#This Row],[2022 5-yr population estimate]]","v":0.14115822130299896},51.2,5.2,35896]
["Warrenville CDP","Aiken County",786,925,{"$f":"(RawData363[[#This Row],[2023 5-yr population estimate]]-RawData363[[#This Row],[2022 5-yr population estimate]])/RawData363[[#This Row],[2022 5-yr population estimate]]","v":0.17684478371501272},7.5,4.2,39817]
["Waterloo town","Laurens County",244,192,{"$f":"(RawData363[[#This Row],[2023 5-yr population estimate]]-RawData363[[#This Row],[2022 5-yr population estimate]])/RawData363[[#This Row],[2022 5-yr population estimate]]","v":-0.21311475409836064},37,4.4000000000000004,41250]
["Watts Mills CDP","Laurens County",2013,2250,{"$f":"(RawData363[[#This Row],[2023 5-yr population estimate]]-RawData363[[#This Row],[2022 5-yr population estimate]])/RawData363[[#This Row],[2022 5-yr population estimate]]","v":0.11773472429210134},9.1999999999999993,4.4000000000000004,47192]
["Wedgefield CDP","Sumter County",2050,1480,{"$f":"(RawData363[[#This Row],[2023 5-yr population estimate]]-RawData363[[#This Row],[2022 5-yr population estimate]])/RawData363[[#This Row],[2022 5-yr population estimate]]","v":-0.2780487804878049},18.7,5.2,41662]
["Welcome CDP","Anderson County",7153,7439,{"$f":"(RawData363[[#This Row],[2023 5-yr population estimate]]-RawData363[[#This Row],[2022 5-yr population estimate]])/RawData363[[#This Row],[2022 5-yr population estimate]]","v":3.9983223822172516E-2},7,3.8,61948]
["Wellford city","Spartanburg County",3330,3432,{"$f":"(RawData363[[#This Row],[2023 5-yr population estimate]]-RawData363[[#This Row],[2022 5-yr population estimate]])/RawData363[[#This Row],[2022 5-yr population estimate]]","v":3.063063063063063E-2},16,4.2,55871]
["West Columbia city","Lexington County",17459,17723,{"$f":"(RawData363[[#This Row],[2023 5-yr population estimate]]-RawData363[[#This Row],[2022 5-yr population estimate]])/RawData363[[#This Row],[2022 5-yr population estimate]]","v":1.5121140958817801E-2},14.1,3.6,54152]
["West Pelzer town","Anderson County",1155,1276,{"$f":"(RawData363[[#This Row],[2023 5-yr population estimate]]-RawData363[[#This Row],[2022 5-yr population estimate]])/RawData363[[#This Row],[2022 5-yr population estimate]]","v":0.10476190476190476},16.100000000000001,3.8,53125]
["West Union town","Oconee County",422,396,{"$f":"(RawData363[[#This Row],[2023 5-yr population estimate]]-RawData363[[#This Row],[2022 5-yr population estimate]])/RawData363[[#This Row],[2022 5-yr population estimate]]","v":-6.1611374407582936E-2},7.6,3.9,49821]
["Westminster city","Oconee County",2215,2244,{"$f":"(RawData363[[#This Row],[2023 5-yr population estimate]]-RawData363[[#This Row],[2022 5-yr population estimate]])/RawData363[[#This Row],[2022 5-yr population estimate]]","v":1.3092550790067719E-2},23.9,3.9,38393]
["Whitmire town","Newberry County",1255,1241,{"$f":"(RawData363[[#This Row],[2023 5-yr population estimate]]-RawData363[[#This Row],[2022 5-yr population estimate]])/RawData363[[#This Row],[2022 5-yr population estimate]]","v":-1.1155378486055778E-2},26,4.2,32188]
["Wilkinson Heights CDP","Orangeburg County",1919,1853,{"$f":"(RawData363[[#This Row],[2023 5-yr population estimate]]-RawData363[[#This Row],[2022 5-yr population estimate]])/RawData363[[#This Row],[2022 5-yr population estimate]]","v":-3.4392912975508075E-2},34.9,6,22714]
["Williams town","Colleton County",203,116,{"$f":"(RawData363[[#This Row],[2023 5-yr population estimate]]-RawData363[[#This Row],[2022 5-yr population estimate]])/RawData363[[#This Row],[2022 5-yr population estimate]]","v":-0.42857142857142855},42.2,4.5999999999999996,61250]
["Williamston town","Anderson County",4072,4116,{"$f":"(RawData363[[#This Row],[2023 5-yr population estimate]]-RawData363[[#This Row],[2022 5-yr population estimate]])/RawData363[[#This Row],[2022 5-yr population estimate]]","v":1.0805500982318271E-2},13.5,3.8,62500]
["Willington CDP","McCormick County",80,84,{"$f":"(RawData363[[#This Row],[2023 5-yr population estimate]]-RawData363[[#This Row],[2022 5-yr population estimate]])/RawData363[[#This Row],[2022 5-yr population estimate]]","v":0.05},100,5.0999999999999996,55344]
["Williston town","Barnwell County",2877,2884,{"$f":"(RawData363[[#This Row],[2023 5-yr population estimate]]-RawData363[[#This Row],[2022 5-yr population estimate]])/RawData363[[#This Row],[2022 5-yr population estimate]]","v":2.4330900243309003E-3},31.1,5.6,35968]
["Windsor town","Aiken County",294,243,{"$f":"(RawData363[[#This Row],[2023 5-yr population estimate]]-RawData363[[#This Row],[2022 5-yr population estimate]])/RawData363[[#This Row],[2022 5-yr population estimate]]","v":-0.17346938775510204},4.9000000000000004,4.2,107500]
["Winnsboro Mills CDP","Fairfield County",1682,1426,{"$f":"(RawData363[[#This Row],[2023 5-yr population estimate]]-RawData363[[#This Row],[2022 5-yr population estimate]])/RawData363[[#This Row],[2022 5-yr population estimate]]","v":-0.15219976218787157},29.7,5,34426]
["Winnsboro town","Fairfield County",3239,3332,{"$f":"(RawData363[[#This Row],[2023 5-yr population estimate]]-RawData363[[#This Row],[2022 5-yr population estimate]])/RawData363[[#This Row],[2022 5-yr population estimate]]","v":2.8712565606668725E-2},24.3,5,35649]
["Woodfield CDP","Richland County",9466,9901,{"$f":"(RawData363[[#This Row],[2023 5-yr population estimate]]-RawData363[[#This Row],[2022 5-yr population estimate]])/RawData363[[#This Row],[2022 5-yr population estimate]]","v":4.595394041833932E-2},24.9,4.3,38394]
["Woodford town","Orangeburg County",163,139,{"$f":"(RawData363[[#This Row],[2023 5-yr population estimate]]-RawData363[[#This Row],[2022 5-yr population estimate]])/RawData363[[#This Row],[2022 5-yr population estimate]]","v":-0.14723926380368099},12.9,6,53125]
["Woodruff city","Spartanburg County",4262,4337,{"$f":"(RawData363[[#This Row],[2023 5-yr population estimate]]-RawData363[[#This Row],[2022 5-yr population estimate]])/RawData363[[#This Row],[2022 5-yr population estimate]]","v":1.7597372125762553E-2},14.7,4.2,64292]
["Yemassee town","Beaufort County",974,1007,{"$f":"(RawData363[[#This Row],[2023 5-yr population estimate]]-RawData363[[#This Row],[2022 5-yr population estimate]])/RawData363[[#This Row],[2022 5-yr population estimate]]","v":3.3880903490759756E-2},31.4,3.8,36923]
["York city","York County",8534,8697,{"$f":"(RawData363[[#This Row],[2023 5-yr population estimate]]-RawData363[[#This Row],[2022 5-yr population estimate]])/RawData363[[#This Row],[2022 5-yr population estimate]]","v":1.9100070307007264E-2},16.100000000000001,4,47315]